{"text_format":"3","workbook":"xlsx","n_sheets":4,"sheets":["RÉCAP. BUDGET CUMULÉ À CE JOUR","RÉCAP. DÉPENSES MENSUELLES","DÉPENSES DÉTAILLÉES","DONS ET PARRAINAGES"],"not_rendered":{"images":1,"defined_names":15},"read":"whole","date_system":"1900"}

{"sheet":"RÉCAP. BUDGET CUMULÉ À CE JOUR","index":0,"n_rows":16,"n_cols":7,"rows_kept":16,"merged":[[1,1,1,4]]}
[]
[null,"Budget réel et budget cumulé à ce jour",{"$nulls":3},"ANNÉE",{"$f":"YEAR(TODAY())","v":2019}]
[null,"Code GL","Titre du compte","Réel","Budget","RESTANT $","% RESTANT"]
[null,1000,"Publicité",{"$f":"SUMIF(RécapitulatifDépensesMensuelles[Code GL],TableCumulÀCeJour[[#This Row],[Code GL]],RécapitulatifDépensesMensuelles[Total])","v":{"v":0,"d":"0.00 $"}},{"v":100000,"d":"100,000.00 $"},{"$f":"IF(TableCumulÀCeJour[[#This Row],[Budget]]=\"\",\"\",TableCumulÀCeJour[[#This Row],[Budget]]-TableCumulÀCeJour[[#This Row],[Réel]])","v":{"v":100000,"d":"100,000.00 $"}},{"$f":"IFERROR(TableCumulÀCeJour[[#This Row],[RESTANT $]]/TableCumulÀCeJour[[#This Row],[Budget]],\"\")","v":{"v":1,"d":"100.00%"}}]
[null,2000,"Équipement Office",{"$f":"SUMIF(RécapitulatifDépensesMensuelles[Code GL],TableCumulÀCeJour[[#This Row],[Code GL]],RécapitulatifDépensesMensuelles[Total])","v":{"v":0,"d":"0.00 $"}},{"v":100000,"d":"100,000.00 $"},{"$f":"IF(TableCumulÀCeJour[[#This Row],[Budget]]=\"\",\"\",TableCumulÀCeJour[[#This Row],[Budget]]-TableCumulÀCeJour[[#This Row],[Réel]])","v":{"v":100000,"d":"100,000.00 $"}},{"$f":"IFERROR(TableCumulÀCeJour[[#This Row],[RESTANT $]]/TableCumulÀCeJour[[#This Row],[Budget]],\"\")","v":{"v":1,"d":"100.00%"}}]
[null,3000,"Imprimantes",{"$f":"SUMIF(RécapitulatifDépensesMensuelles[Code GL],TableCumulÀCeJour[[#This Row],[Code GL]],RécapitulatifDépensesMensuelles[Total])","v":{"v":0,"d":"0.00 $"}},{"v":100000,"d":"100,000.00 $"},{"$f":"IF(TableCumulÀCeJour[[#This Row],[Budget]]=\"\",\"\",TableCumulÀCeJour[[#This Row],[Budget]]-TableCumulÀCeJour[[#This Row],[Réel]])","v":{"v":100000,"d":"100,000.00 $"}},{"$f":"IFERROR(TableCumulÀCeJour[[#This Row],[RESTANT $]]/TableCumulÀCeJour[[#This Row],[Budget]],\"\")","v":{"v":1,"d":"100.00%"}}]
[null,4000,"Coûts du serveur",{"$f":"SUMIF(RécapitulatifDépensesMensuelles[Code GL],TableCumulÀCeJour[[#This Row],[Code GL]],RécapitulatifDépensesMensuelles[Total])","v":{"v":0,"d":"0.00 $"}},{"v":100000,"d":"100,000.00 $"},{"$f":"IF(TableCumulÀCeJour[[#This Row],[Budget]]=\"\",\"\",TableCumulÀCeJour[[#This Row],[Budget]]-TableCumulÀCeJour[[#This Row],[Réel]])","v":{"v":100000,"d":"100,000.00 $"}},{"$f":"IFERROR(TableCumulÀCeJour[[#This Row],[RESTANT $]]/TableCumulÀCeJour[[#This Row],[Budget]],\"\")","v":{"v":1,"d":"100.00%"}}]
[null,5000,"Stocks",{"$f":"SUMIF(RécapitulatifDépensesMensuelles[Code GL],TableCumulÀCeJour[[#This Row],[Code GL]],RécapitulatifDépensesMensuelles[Total])","v":{"v":0,"d":"0.00 $"}},{"v":50000,"d":"50,000.00 $"},{"$f":"IF(TableCumulÀCeJour[[#This Row],[Budget]]=\"\",\"\",TableCumulÀCeJour[[#This Row],[Budget]]-TableCumulÀCeJour[[#This Row],[Réel]])","v":{"v":50000,"d":"50,000.00 $"}},{"$f":"IFERROR(TableCumulÀCeJour[[#This Row],[RESTANT $]]/TableCumulÀCeJour[[#This Row],[Budget]],\"\")","v":{"v":1,"d":"100.00%"}}]
[null,6000,"Dépenses client",{"$f":"SUMIF(RécapitulatifDépensesMensuelles[Code GL],TableCumulÀCeJour[[#This Row],[Code GL]],RécapitulatifDépensesMensuelles[Total])","v":{"v":0,"d":"0.00 $"}},{"v":25000,"d":"25,000.00 $"},{"$f":"IF(TableCumulÀCeJour[[#This Row],[Budget]]=\"\",\"\",TableCumulÀCeJour[[#This Row],[Budget]]-TableCumulÀCeJour[[#This Row],[Réel]])","v":{"v":25000,"d":"25,000.00 $"}},{"$f":"IFERROR(TableCumulÀCeJour[[#This Row],[RESTANT $]]/TableCumulÀCeJour[[#This Row],[Budget]],\"\")","v":{"v":1,"d":"100.00%"}}]
[null,7000,"Ordinateurs",{"$f":"SUMIF(RécapitulatifDépensesMensuelles[Code GL],TableCumulÀCeJour[[#This Row],[Code GL]],RécapitulatifDépensesMensuelles[Total])","v":{"v":0,"d":"0.00 $"}},{"v":75000,"d":"75,000.00 $"},{"$f":"IF(TableCumulÀCeJour[[#This Row],[Budget]]=\"\",\"\",TableCumulÀCeJour[[#This Row],[Budget]]-TableCumulÀCeJour[[#This Row],[Réel]])","v":{"v":75000,"d":"75,000.00 $"}},{"$f":"IFERROR(TableCumulÀCeJour[[#This Row],[RESTANT $]]/TableCumulÀCeJour[[#This Row],[Budget]],\"\")","v":{"v":1,"d":"100.00%"}}]
[null,8000,"Régime d'assurance-maladie",{"$f":"SUMIF(RécapitulatifDépensesMensuelles[Code GL],TableCumulÀCeJour[[#This Row],[Code GL]],RécapitulatifDépensesMensuelles[Total])","v":{"v":0,"d":"0.00 $"}},{"v":65000,"d":"65,000.00 $"},{"$f":"IF(TableCumulÀCeJour[[#This Row],[Budget]]=\"\",\"\",TableCumulÀCeJour[[#This Row],[Budget]]-TableCumulÀCeJour[[#This Row],[Réel]])","v":{"v":65000,"d":"65,000.00 $"}},{"$f":"IFERROR(TableCumulÀCeJour[[#This Row],[RESTANT $]]/TableCumulÀCeJour[[#This Row],[Budget]],\"\")","v":{"v":1,"d":"100.00%"}}]
[null,9000,"Coûts de construction",{"$f":"SUMIF(RécapitulatifDépensesMensuelles[Code GL],TableCumulÀCeJour[[#This Row],[Code GL]],RécapitulatifDépensesMensuelles[Total])","v":{"v":0,"d":"0.00 $"}},{"v":125000,"d":"125,000.00 $"},{"$f":"IF(TableCumulÀCeJour[[#This Row],[Budget]]=\"\",\"\",TableCumulÀCeJour[[#This Row],[Budget]]-TableCumulÀCeJour[[#This Row],[Réel]])","v":{"v":125000,"d":"125,000.00 $"}},{"$f":"IFERROR(TableCumulÀCeJour[[#This Row],[RESTANT $]]/TableCumulÀCeJour[[#This Row],[Budget]],\"\")","v":{"v":1,"d":"100.00%"}}]
[null,10000,"Marketing",{"$f":"SUMIF(RécapitulatifDépensesMensuelles[Code GL],TableCumulÀCeJour[[#This Row],[Code GL]],RécapitulatifDépensesMensuelles[Total])","v":{"v":0,"d":"0.00 $"}},{"v":100000,"d":"100,000.00 $"},{"$f":"IF(TableCumulÀCeJour[[#This Row],[Budget]]=\"\",\"\",TableCumulÀCeJour[[#This Row],[Budget]]-TableCumulÀCeJour[[#This Row],[Réel]])","v":{"v":100000,"d":"100,000.00 $"}},{"$f":"IFERROR(TableCumulÀCeJour[[#This Row],[RESTANT $]]/TableCumulÀCeJour[[#This Row],[Budget]],\"\")","v":{"v":1,"d":"100.00%"}}]
[null,11000,"Dons caritatifs",{"$f":"SUMIF(RécapitulatifDépensesMensuelles[Code GL],TableCumulÀCeJour[[#This Row],[Code GL]],RécapitulatifDépensesMensuelles[Total])","v":{"v":0,"d":"0.00 $"}},{"v":250000,"d":"250,000.00 $"},{"$f":"IF(TableCumulÀCeJour[[#This Row],[Budget]]=\"\",\"\",TableCumulÀCeJour[[#This Row],[Budget]]-TableCumulÀCeJour[[#This Row],[Réel]])","v":{"v":250000,"d":"250,000.00 $"}},{"$f":"IFERROR(TableCumulÀCeJour[[#This Row],[RESTANT $]]/TableCumulÀCeJour[[#This Row],[Budget]],\"\")","v":{"v":1,"d":"100.00%"}}]
[null,12000,"Parrainages",{"$f":"SUMIF(RécapitulatifDépensesMensuelles[Code GL],TableCumulÀCeJour[[#This Row],[Code GL]],RécapitulatifDépensesMensuelles[Total])","v":{"v":0,"d":"0.00 $"}},{"v":50000,"d":"50,000.00 $"},{"$f":"IF(TableCumulÀCeJour[[#This Row],[Budget]]=\"\",\"\",TableCumulÀCeJour[[#This Row],[Budget]]-TableCumulÀCeJour[[#This Row],[Réel]])","v":{"v":50000,"d":"50,000.00 $"}},{"$f":"IFERROR(TableCumulÀCeJour[[#This Row],[RESTANT $]]/TableCumulÀCeJour[[#This Row],[Budget]],\"\")","v":{"v":1,"d":"100.00%"}}]
[null,"Total",null,{"$f":"SUBTOTAL(109,TableCumulÀCeJour[Réel])","v":{"v":0,"d":"0.00 $"}},{"$f":"SUBTOTAL(109,TableCumulÀCeJour[Budget])","v":{"v":1140000,"d":"1,140,000.00 $"}},{"$f":"SUBTOTAL(109,TableCumulÀCeJour[RESTANT $])","v":{"v":1140000,"d":"1,140,000.00 $"}},{"$f":"TableCumulÀCeJour[[#Totals],[RESTANT $]]/TableCumulÀCeJour[[#Totals],[Budget]]","v":{"v":1,"d":"100.00%"}}]

{"sheet":"RÉCAP. DÉPENSES MENSUELLES","index":1,"n_rows":18,"n_cols":17,"rows_kept":18,"merged":[[1,1,1,16]]}
[]
[null,"RÉCAP. DÉPENSES MENSUELLES"]
[null,"Segment pour filtrer des données par des titres compte se trouve dans cette cellule.",null,{"$f":"DATEVALUE(\"1-JAN\"&_ANNÉE)","v":{"v":43466,"d":"4346600.00%"}},{"$f":"DATEVALUE(\"1-FÉV\"&_ANNÉE)","v":{"v":43497,"d":"4349700.00%"}},{"$f":"DATEVALUE(\"1-MAR\"&_ANNÉE)","v":{"v":43525,"d":"4352500.00%"}},{"$f":"DATEVALUE(\"1-AVR\"&_ANNÉE)","v":{"v":43556,"d":"4355600.00%"}},{"$f":"DATEVALUE(\"1-MAI\"&_ANNÉE)","v":{"v":43586,"d":"4358600.00%"}},{"$f":"DATEVALUE(\"1-JUIN\"&_ANNÉE)","v":{"v":43617,"d":"4361700.00%"}},{"$f":"DATEVALUE(\"1-JUIL\"&_ANNÉE)","v":{"v":43647,"d":"4364700.00%"}},{"$f":"DATEVALUE(\"1-AOÛ\"&_ANNÉE)","v":{"v":43678,"d":"4367800.00%"}},{"$f":"DATEVALUE(\"1-SEP\"&_ANNÉE)","v":{"v":43709,"d":"4370900.00%"}},{"$f":"DATEVALUE(\"1-OCT\"&_ANNÉE)","v":{"v":43739,"d":"4373900.00%"}},{"$f":"DATEVALUE(\"1-NOV\"&_ANNÉE)","v":{"v":43770,"d":"4377000.00%"}},{"$f":"DATEVALUE(\"1-DÉC\"&_ANNÉE)","v":{"v":43800,"d":"4380000.00%"}}]
[{"$nulls":3},{"$f":"EOMONTH(D3,0)","v":{"v":43496,"d":"4349600.00%"}},{"$f":"EOMONTH(E3,0)","v":{"v":43524,"d":"4352400.00%"}},{"$f":"EOMONTH(F3,0)","v":{"v":43555,"d":"4355500.00%"}},{"$f":"EOMONTH(G3,0)","v":{"v":43585,"d":"4358500.00%"}},{"$f":"EOMONTH(H3,0)","v":{"v":43616,"d":"4361600.00%"}},{"$f":"EOMONTH(I3,0)","v":{"v":43646,"d":"4364600.00%"}},{"v":43677,"d":"4367700.00%"},{"v":43708,"d":"4370800.00%"},{"v":43738,"d":"4373800.00%"},{"v":43769,"d":"4376900.00%"},{"v":43799,"d":"4379900.00%"},{"v":43830,"d":"4383000.00%"}]
[null,"Code GL","Titre du compte","Janvier","Février","Mars","Avril","Mai","Juin","Juillet","Août","Septembre","Octobre","Novembre","Décembre","Total"," "]
[null,1000,"Publicité",{"$f":"SUMIFS(DépensesDétaillées[Vérifiez la quantité],DépensesDétaillées[Code GL],RécapitulatifDépensesMensuelles[[#This Row],[Code GL]],DépensesDétaillées[Date de facturation ],\">=\"&D$3,DépensesDétaillées[Date de facturation ],\"<=\"&D$4)+SUMIFS(Autres[Vérifiez la quantité],Autres[Code GL],RécapitulatifDépensesMensuelles[[#This Row],[Code GL]],Autres[Date de la demande du chèque],\">=\"&DATEVALUE(\" 1 \"&RécapitulatifDépensesMensuelles[[#Headers],[Janvier]]&_ANNÉE),Autres[Date de la demande du chèque],\"<=\"&D$4)","v":{"v":0,"d":"0.00 $"}},{"$f":"SUMIFS(DépensesDétaillées[Vérifiez la quantité],DépensesDétaillées[Code GL],RécapitulatifDépensesMensuelles[[#This Row],[Code GL]],DépensesDétaillées[Date de facturation ],\">=\"&E$3,DépensesDétaillées[Date de facturation ],\"<=\"&E$4)+SUMIFS(Autres[Vérifiez la quantité],Autres[Code GL],RécapitulatifDépensesMensuelles[[#This Row],[Code GL]],Autres[Date de la demande du chèque],\">=\"&DATEVALUE(\" 1 \"&RécapitulatifDépensesMensuelles[[#Headers],[Février]]&_ANNÉE),Autres[Date de la demande du chèque],\"<=\"&E$4)","v":{"v":0,"d":"0.00 $"}},{"$f":"SUMIFS(DépensesDétaillées[Vérifiez la quantité],DépensesDétaillées[Code GL],RécapitulatifDépensesMensuelles[[#This Row],[Code GL]],DépensesDétaillées[Date de facturation ],\">=\"&F$3,DépensesDétaillées[Date de facturation ],\"<=\"&F$4)+SUMIFS(Autres[Vérifiez la quantité],Autres[Code GL],RécapitulatifDépensesMensuelles[[#This Row],[Code GL]],Autres[Date de la demande du chèque],\">=\"&DATEVALUE(\" 1 \"&RécapitulatifDépensesMensuelles[[#Headers],[Mars]]&_ANNÉE),Autres[Date de la demande du chèque],\"<=\"&F$4)","v":{"v":0,"d":"0.00 $"}},{"$f":"SUMIFS(DépensesDétaillées[Vérifiez la quantité],DépensesDétaillées[Code GL],RécapitulatifDépensesMensuelles[[#This Row],[Code GL]],DépensesDétaillées[Date de facturation ],\">=\"&G$3,DépensesDétaillées[Date de facturation ],\"<=\"&G$4)+SUMIFS(Autres[Vérifiez la quantité],Autres[Code GL],RécapitulatifDépensesMensuelles[[#This Row],[Code GL]],Autres[Date de la demande du chèque],\">=\"&DATEVALUE(\" 1 \"&RécapitulatifDépensesMensuelles[[#Headers],[Avril]]&_ANNÉE),Autres[Date de la demande du chèque],\"<=\"&G$4)","v":{"v":0,"d":"0.00 $"}},{"$f":"SUMIFS(DépensesDétaillées[Vérifiez la quantité],DépensesDétaillées[Code GL],RécapitulatifDépensesMensuelles[[#This Row],[Code GL]],DépensesDétaillées[Date de facturation ],\">=\"&H$3,DépensesDétaillées[Date de facturation ],\"<=\"&H$4)+SUMIFS(Autres[Vérifiez la quantité],Autres[Code GL],RécapitulatifDépensesMensuelles[[#This Row],[Code GL]],Autres[Date de la demande du chèque],\">=\"&DATEVALUE(\" 1 \"&RécapitulatifDépensesMensuelles[[#Headers],[Mai]]&_ANNÉE),Autres[Date de la demande du chèque],\"<=\"&H$4)","v":{"v":0,"d":"0.00 $"}},{"$f":"SUMIFS(DépensesDétaillées[Vérifiez la quantité],DépensesDétaillées[Code GL],RécapitulatifDépensesMensuelles[[#This Row],[Code GL]],DépensesDétaillées[Date de facturation ],\">=\"&I$3,DépensesDétaillées[Date de facturation ],\"<=\"&I$4)+SUMIFS(Autres[Vérifiez la quantité],Autres[Code GL],RécapitulatifDépensesMensuelles[[#This Row],[Code GL]],Autres[Date de la demande du chèque],\">=\"&DATEVALUE(\" 1 \"&RécapitulatifDépensesMensuelles[[#Headers],[Juin]]&_ANNÉE),Autres[Date de la demande du chèque],\"<=\"&I$4)","v":{"v":0,"d":"0.00 $"}},{"$f":"SUMIFS(DépensesDétaillées[Vérifiez la quantité],DépensesDétaillées[Code GL],RécapitulatifDépensesMensuelles[[#This Row],[Code GL]],DépensesDétaillées[Date de facturation ],\">=\"&J$3,DépensesDétaillées[Date de facturation ],\"<=\"&J$4)+SUMIFS(Autres[Vérifiez la quantité],Autres[Code GL],RécapitulatifDépensesMensuelles[[#This Row],[Code GL]],Autres[Date de la demande du chèque],\">=\"&DATEVALUE(\" 1 \"&RécapitulatifDépensesMensuelles[[#Headers],[Juillet]]&_ANNÉE),Autres[Date de la demande du chèque],\"<=\"&J$4)","v":{"v":0,"d":"0.00 $"}},{"$f":"SUMIFS(DépensesDétaillées[Vérifiez la quantité],DépensesDétaillées[Code GL],RécapitulatifDépensesMensuelles[[#This Row],[Code GL]],DépensesDétaillées[Date de facturation ],\">=\"&K$3,DépensesDétaillées[Date de facturation ],\"<=\"&K$4)+SUMIFS(Autres[Vérifiez la quantité],Autres[Code GL],RécapitulatifDépensesMensuelles[[#This Row],[Code GL]],Autres[Date de la demande du chèque],\">=\"&DATEVALUE(\" 1 \"&RécapitulatifDépensesMensuelles[[#Headers],[Août]]&_ANNÉE),Autres[Date de la demande du chèque],\"<=\"&K$4)","v":{"v":0,"d":"0.00 $"}},{"$f":"SUMIFS(DépensesDétaillées[Vérifiez la quantité],DépensesDétaillées[Code GL],RécapitulatifDépensesMensuelles[[#This Row],[Code GL]],DépensesDétaillées[Date de facturation ],\">=\"&L$3,DépensesDétaillées[Date de facturation ],\"<=\"&L$4)+SUMIFS(Autres[Vérifiez la quantité],Autres[Code GL],RécapitulatifDépensesMensuelles[[#This Row],[Code GL]],Autres[Date de la demande du chèque],\">=\"&DATEVALUE(\" 1 \"&RécapitulatifDépensesMensuelles[[#Headers],[Septembre]]&_ANNÉE),Autres[Date de la demande du chèque],\"<=\"&L$4)","v":{"v":0,"d":"0.00 $"}},{"$f":"SUMIFS(DépensesDétaillées[Vérifiez la quantité],DépensesDétaillées[Code GL],RécapitulatifDépensesMensuelles[[#This Row],[Code GL]],DépensesDétaillées[Date de facturation ],\">=\"&M$3,DépensesDétaillées[Date de facturation ],\"<=\"&M$4)+SUMIFS(Autres[Vérifiez la quantité],Autres[Code GL],RécapitulatifDépensesMensuelles[[#This Row],[Code GL]],Autres[Date de la demande du chèque],\">=\"&DATEVALUE(\" 1 \"&RécapitulatifDépensesMensuelles[[#Headers],[Octobre]]&_ANNÉE),Autres[Date de la demande du chèque],\"<=\"&M$4)","v":{"v":0,"d":"0.00 $"}},{"$f":"SUMIFS(DépensesDétaillées[Vérifiez la quantité],DépensesDétaillées[Code GL],RécapitulatifDépensesMensuelles[[#This Row],[Code GL]],DépensesDétaillées[Date de facturation ],\">=\"&N$3,DépensesDétaillées[Date de facturation ],\"<=\"&N$4)+SUMIFS(Autres[Vérifiez la quantité],Autres[Code GL],RécapitulatifDépensesMensuelles[[#This Row],[Code GL]],Autres[Date de la demande du chèque],\">=\"&DATEVALUE(\" 1 \"&RécapitulatifDépensesMensuelles[[#Headers],[Novembre]]&_ANNÉE),Autres[Date de la demande du chèque],\"<=\"&N$4)","v":{"v":0,"d":"0.00 $"}},{"$f":"SUMIFS(DépensesDétaillées[Vérifiez la quantité],DépensesDétaillées[Code GL],RécapitulatifDépensesMensuelles[[#This Row],[Code GL]],DépensesDétaillées[Date de facturation ],\">=\"&O$3,DépensesDétaillées[Date de facturation ],\"<=\"&O$4)+SUMIFS(Autres[Vérifiez la quantité],Autres[Code GL],RécapitulatifDépensesMensuelles[[#This Row],[Code GL]],Autres[Date de la demande du chèque],\">=\"&DATEVALUE(\" 1 \"&RécapitulatifDépensesMensuelles[[#Headers],[Décembre]]&_ANNÉE),Autres[Date de la demande du chèque],\"<=\"&O$4)","v":{"v":0,"d":"0.00 $"}},{"$f":"SUM(RécapitulatifDépensesMensuelles[[#This Row],[Janvier]:[Décembre]])","v":{"v":0,"d":"0.00 $"}}]
[null,2000,"Équipement Office",{"$f":"SUMIFS(DépensesDétaillées[Vérifiez la quantité],DépensesDétaillées[Code GL],RécapitulatifDépensesMensuelles[[#This Row],[Code GL]],DépensesDétaillées[Date de facturation ],\">=\"&D$3,DépensesDétaillées[Date de facturation ],\"<=\"&D$4)+SUMIFS(Autres[Vérifiez la quantité],Autres[Code GL],RécapitulatifDépensesMensuelles[[#This Row],[Code GL]],Autres[Date de la demande du chèque],\">=\"&DATEVALUE(\" 1 \"&RécapitulatifDépensesMensuelles[[#Headers],[Janvier]]&_ANNÉE),Autres[Date de la demande du chèque],\"<=\"&D$4)","v":{"v":0,"d":"0.00 $"}},{"$f":"SUMIFS(DépensesDétaillées[Vérifiez la quantité],DépensesDétaillées[Code GL],RécapitulatifDépensesMensuelles[[#This Row],[Code GL]],DépensesDétaillées[Date de facturation ],\">=\"&E$3,DépensesDétaillées[Date de facturation ],\"<=\"&E$4)+SUMIFS(Autres[Vérifiez la quantité],Autres[Code GL],RécapitulatifDépensesMensuelles[[#This Row],[Code GL]],Autres[Date de la demande du chèque],\">=\"&DATEVALUE(\" 1 \"&RécapitulatifDépensesMensuelles[[#Headers],[Février]]&_ANNÉE),Autres[Date de la demande du chèque],\"<=\"&E$4)","v":{"v":0,"d":"0.00 $"}},{"$f":"SUMIFS(DépensesDétaillées[Vérifiez la quantité],DépensesDétaillées[Code GL],RécapitulatifDépensesMensuelles[[#This Row],[Code GL]],DépensesDétaillées[Date de facturation ],\">=\"&F$3,DépensesDétaillées[Date de facturation ],\"<=\"&F$4)+SUMIFS(Autres[Vérifiez la quantité],Autres[Code GL],RécapitulatifDépensesMensuelles[[#This Row],[Code GL]],Autres[Date de la demande du chèque],\">=\"&DATEVALUE(\" 1 \"&RécapitulatifDépensesMensuelles[[#Headers],[Mars]]&_ANNÉE),Autres[Date de la demande du chèque],\"<=\"&F$4)","v":{"v":0,"d":"0.00 $"}},{"$f":"SUMIFS(DépensesDétaillées[Vérifiez la quantité],DépensesDétaillées[Code GL],RécapitulatifDépensesMensuelles[[#This Row],[Code GL]],DépensesDétaillées[Date de facturation ],\">=\"&G$3,DépensesDétaillées[Date de facturation ],\"<=\"&G$4)+SUMIFS(Autres[Vérifiez la quantité],Autres[Code GL],RécapitulatifDépensesMensuelles[[#This Row],[Code GL]],Autres[Date de la demande du chèque],\">=\"&DATEVALUE(\" 1 \"&RécapitulatifDépensesMensuelles[[#Headers],[Avril]]&_ANNÉE),Autres[Date de la demande du chèque],\"<=\"&G$4)","v":{"v":0,"d":"0.00 $"}},{"$f":"SUMIFS(DépensesDétaillées[Vérifiez la quantité],DépensesDétaillées[Code GL],RécapitulatifDépensesMensuelles[[#This Row],[Code GL]],DépensesDétaillées[Date de facturation ],\">=\"&H$3,DépensesDétaillées[Date de facturation ],\"<=\"&H$4)+SUMIFS(Autres[Vérifiez la quantité],Autres[Code GL],RécapitulatifDépensesMensuelles[[#This Row],[Code GL]],Autres[Date de la demande du chèque],\">=\"&DATEVALUE(\" 1 \"&RécapitulatifDépensesMensuelles[[#Headers],[Mai]]&_ANNÉE),Autres[Date de la demande du chèque],\"<=\"&H$4)","v":{"v":0,"d":"0.00 $"}},{"$f":"SUMIFS(DépensesDétaillées[Vérifiez la quantité],DépensesDétaillées[Code GL],RécapitulatifDépensesMensuelles[[#This Row],[Code GL]],DépensesDétaillées[Date de facturation ],\">=\"&I$3,DépensesDétaillées[Date de facturation ],\"<=\"&I$4)+SUMIFS(Autres[Vérifiez la quantité],Autres[Code GL],RécapitulatifDépensesMensuelles[[#This Row],[Code GL]],Autres[Date de la demande du chèque],\">=\"&DATEVALUE(\" 1 \"&RécapitulatifDépensesMensuelles[[#Headers],[Juin]]&_ANNÉE),Autres[Date de la demande du chèque],\"<=\"&I$4)","v":{"v":0,"d":"0.00 $"}},{"$f":"SUMIFS(DépensesDétaillées[Vérifiez la quantité],DépensesDétaillées[Code GL],RécapitulatifDépensesMensuelles[[#This Row],[Code GL]],DépensesDétaillées[Date de facturation ],\">=\"&J$3,DépensesDétaillées[Date de facturation ],\"<=\"&J$4)+SUMIFS(Autres[Vérifiez la quantité],Autres[Code GL],RécapitulatifDépensesMensuelles[[#This Row],[Code GL]],Autres[Date de la demande du chèque],\">=\"&DATEVALUE(\" 1 \"&RécapitulatifDépensesMensuelles[[#Headers],[Juillet]]&_ANNÉE),Autres[Date de la demande du chèque],\"<=\"&J$4)","v":{"v":0,"d":"0.00 $"}},{"$f":"SUMIFS(DépensesDétaillées[Vérifiez la quantité],DépensesDétaillées[Code GL],RécapitulatifDépensesMensuelles[[#This Row],[Code GL]],DépensesDétaillées[Date de facturation ],\">=\"&K$3,DépensesDétaillées[Date de facturation ],\"<=\"&K$4)+SUMIFS(Autres[Vérifiez la quantité],Autres[Code GL],RécapitulatifDépensesMensuelles[[#This Row],[Code GL]],Autres[Date de la demande du chèque],\">=\"&DATEVALUE(\" 1 \"&RécapitulatifDépensesMensuelles[[#Headers],[Août]]&_ANNÉE),Autres[Date de la demande du chèque],\"<=\"&K$4)","v":{"v":0,"d":"0.00 $"}},{"$f":"SUMIFS(DépensesDétaillées[Vérifiez la quantité],DépensesDétaillées[Code GL],RécapitulatifDépensesMensuelles[[#This Row],[Code GL]],DépensesDétaillées[Date de facturation ],\">=\"&L$3,DépensesDétaillées[Date de facturation ],\"<=\"&L$4)+SUMIFS(Autres[Vérifiez la quantité],Autres[Code GL],RécapitulatifDépensesMensuelles[[#This Row],[Code GL]],Autres[Date de la demande du chèque],\">=\"&DATEVALUE(\" 1 \"&RécapitulatifDépensesMensuelles[[#Headers],[Septembre]]&_ANNÉE),Autres[Date de la demande du chèque],\"<=\"&L$4)","v":{"v":0,"d":"0.00 $"}},{"$f":"SUMIFS(DépensesDétaillées[Vérifiez la quantité],DépensesDétaillées[Code GL],RécapitulatifDépensesMensuelles[[#This Row],[Code GL]],DépensesDétaillées[Date de facturation ],\">=\"&M$3,DépensesDétaillées[Date de facturation ],\"<=\"&M$4)+SUMIFS(Autres[Vérifiez la quantité],Autres[Code GL],RécapitulatifDépensesMensuelles[[#This Row],[Code GL]],Autres[Date de la demande du chèque],\">=\"&DATEVALUE(\" 1 \"&RécapitulatifDépensesMensuelles[[#Headers],[Octobre]]&_ANNÉE),Autres[Date de la demande du chèque],\"<=\"&M$4)","v":{"v":0,"d":"0.00 $"}},{"$f":"SUMIFS(DépensesDétaillées[Vérifiez la quantité],DépensesDétaillées[Code GL],RécapitulatifDépensesMensuelles[[#This Row],[Code GL]],DépensesDétaillées[Date de facturation ],\">=\"&N$3,DépensesDétaillées[Date de facturation ],\"<=\"&N$4)+SUMIFS(Autres[Vérifiez la quantité],Autres[Code GL],RécapitulatifDépensesMensuelles[[#This Row],[Code GL]],Autres[Date de la demande du chèque],\">=\"&DATEVALUE(\" 1 \"&RécapitulatifDépensesMensuelles[[#Headers],[Novembre]]&_ANNÉE),Autres[Date de la demande du chèque],\"<=\"&N$4)","v":{"v":0,"d":"0.00 $"}},{"$f":"SUMIFS(DépensesDétaillées[Vérifiez la quantité],DépensesDétaillées[Code GL],RécapitulatifDépensesMensuelles[[#This Row],[Code GL]],DépensesDétaillées[Date de facturation ],\">=\"&O$3,DépensesDétaillées[Date de facturation ],\"<=\"&O$4)+SUMIFS(Autres[Vérifiez la quantité],Autres[Code GL],RécapitulatifDépensesMensuelles[[#This Row],[Code GL]],Autres[Date de la demande du chèque],\">=\"&DATEVALUE(\" 1 \"&RécapitulatifDépensesMensuelles[[#Headers],[Décembre]]&_ANNÉE),Autres[Date de la demande du chèque],\"<=\"&O$4)","v":{"v":0,"d":"0.00 $"}},{"$f":"SUM(RécapitulatifDépensesMensuelles[[#This Row],[Janvier]:[Décembre]])","v":{"v":0,"d":"0.00 $"}}]
[null,3000,"Imprimantes",{"$f":"SUMIFS(DépensesDétaillées[Vérifiez la quantité],DépensesDétaillées[Code GL],RécapitulatifDépensesMensuelles[[#This Row],[Code GL]],DépensesDétaillées[Date de facturation ],\">=\"&D$3,DépensesDétaillées[Date de facturation ],\"<=\"&D$4)+SUMIFS(Autres[Vérifiez la quantité],Autres[Code GL],RécapitulatifDépensesMensuelles[[#This Row],[Code GL]],Autres[Date de la demande du chèque],\">=\"&DATEVALUE(\" 1 \"&RécapitulatifDépensesMensuelles[[#Headers],[Janvier]]&_ANNÉE),Autres[Date de la demande du chèque],\"<=\"&D$4)","v":{"v":0,"d":"0.00 $"}},{"$f":"SUMIFS(DépensesDétaillées[Vérifiez la quantité],DépensesDétaillées[Code GL],RécapitulatifDépensesMensuelles[[#This Row],[Code GL]],DépensesDétaillées[Date de facturation ],\">=\"&E$3,DépensesDétaillées[Date de facturation ],\"<=\"&E$4)+SUMIFS(Autres[Vérifiez la quantité],Autres[Code GL],RécapitulatifDépensesMensuelles[[#This Row],[Code GL]],Autres[Date de la demande du chèque],\">=\"&DATEVALUE(\" 1 \"&RécapitulatifDépensesMensuelles[[#Headers],[Février]]&_ANNÉE),Autres[Date de la demande du chèque],\"<=\"&E$4)","v":{"v":0,"d":"0.00 $"}},{"$f":"SUMIFS(DépensesDétaillées[Vérifiez la quantité],DépensesDétaillées[Code GL],RécapitulatifDépensesMensuelles[[#This Row],[Code GL]],DépensesDétaillées[Date de facturation ],\">=\"&F$3,DépensesDétaillées[Date de facturation ],\"<=\"&F$4)+SUMIFS(Autres[Vérifiez la quantité],Autres[Code GL],RécapitulatifDépensesMensuelles[[#This Row],[Code GL]],Autres[Date de la demande du chèque],\">=\"&DATEVALUE(\" 1 \"&RécapitulatifDépensesMensuelles[[#Headers],[Mars]]&_ANNÉE),Autres[Date de la demande du chèque],\"<=\"&F$4)","v":{"v":0,"d":"0.00 $"}},{"$f":"SUMIFS(DépensesDétaillées[Vérifiez la quantité],DépensesDétaillées[Code GL],RécapitulatifDépensesMensuelles[[#This Row],[Code GL]],DépensesDétaillées[Date de facturation ],\">=\"&G$3,DépensesDétaillées[Date de facturation ],\"<=\"&G$4)+SUMIFS(Autres[Vérifiez la quantité],Autres[Code GL],RécapitulatifDépensesMensuelles[[#This Row],[Code GL]],Autres[Date de la demande du chèque],\">=\"&DATEVALUE(\" 1 \"&RécapitulatifDépensesMensuelles[[#Headers],[Avril]]&_ANNÉE),Autres[Date de la demande du chèque],\"<=\"&G$4)","v":{"v":0,"d":"0.00 $"}},{"$f":"SUMIFS(DépensesDétaillées[Vérifiez la quantité],DépensesDétaillées[Code GL],RécapitulatifDépensesMensuelles[[#This Row],[Code GL]],DépensesDétaillées[Date de facturation ],\">=\"&H$3,DépensesDétaillées[Date de facturation ],\"<=\"&H$4)+SUMIFS(Autres[Vérifiez la quantité],Autres[Code GL],RécapitulatifDépensesMensuelles[[#This Row],[Code GL]],Autres[Date de la demande du chèque],\">=\"&DATEVALUE(\" 1 \"&RécapitulatifDépensesMensuelles[[#Headers],[Mai]]&_ANNÉE),Autres[Date de la demande du chèque],\"<=\"&H$4)","v":{"v":0,"d":"0.00 $"}},{"$f":"SUMIFS(DépensesDétaillées[Vérifiez la quantité],DépensesDétaillées[Code GL],RécapitulatifDépensesMensuelles[[#This Row],[Code GL]],DépensesDétaillées[Date de facturation ],\">=\"&I$3,DépensesDétaillées[Date de facturation ],\"<=\"&I$4)+SUMIFS(Autres[Vérifiez la quantité],Autres[Code GL],RécapitulatifDépensesMensuelles[[#This Row],[Code GL]],Autres[Date de la demande du chèque],\">=\"&DATEVALUE(\" 1 \"&RécapitulatifDépensesMensuelles[[#Headers],[Juin]]&_ANNÉE),Autres[Date de la demande du chèque],\"<=\"&I$4)","v":{"v":0,"d":"0.00 $"}},{"$f":"SUMIFS(DépensesDétaillées[Vérifiez la quantité],DépensesDétaillées[Code GL],RécapitulatifDépensesMensuelles[[#This Row],[Code GL]],DépensesDétaillées[Date de facturation ],\">=\"&J$3,DépensesDétaillées[Date de facturation ],\"<=\"&J$4)+SUMIFS(Autres[Vérifiez la quantité],Autres[Code GL],RécapitulatifDépensesMensuelles[[#This Row],[Code GL]],Autres[Date de la demande du chèque],\">=\"&DATEVALUE(\" 1 \"&RécapitulatifDépensesMensuelles[[#Headers],[Juillet]]&_ANNÉE),Autres[Date de la demande du chèque],\"<=\"&J$4)","v":{"v":0,"d":"0.00 $"}},{"$f":"SUMIFS(DépensesDétaillées[Vérifiez la quantité],DépensesDétaillées[Code GL],RécapitulatifDépensesMensuelles[[#This Row],[Code GL]],DépensesDétaillées[Date de facturation ],\">=\"&K$3,DépensesDétaillées[Date de facturation ],\"<=\"&K$4)+SUMIFS(Autres[Vérifiez la quantité],Autres[Code GL],RécapitulatifDépensesMensuelles[[#This Row],[Code GL]],Autres[Date de la demande du chèque],\">=\"&DATEVALUE(\" 1 \"&RécapitulatifDépensesMensuelles[[#Headers],[Août]]&_ANNÉE),Autres[Date de la demande du chèque],\"<=\"&K$4)","v":{"v":0,"d":"0.00 $"}},{"$f":"SUMIFS(DépensesDétaillées[Vérifiez la quantité],DépensesDétaillées[Code GL],RécapitulatifDépensesMensuelles[[#This Row],[Code GL]],DépensesDétaillées[Date de facturation ],\">=\"&L$3,DépensesDétaillées[Date de facturation ],\"<=\"&L$4)+SUMIFS(Autres[Vérifiez la quantité],Autres[Code GL],RécapitulatifDépensesMensuelles[[#This Row],[Code GL]],Autres[Date de la demande du chèque],\">=\"&DATEVALUE(\" 1 \"&RécapitulatifDépensesMensuelles[[#Headers],[Septembre]]&_ANNÉE),Autres[Date de la demande du chèque],\"<=\"&L$4)","v":{"v":0,"d":"0.00 $"}},{"$f":"SUMIFS(DépensesDétaillées[Vérifiez la quantité],DépensesDétaillées[Code GL],RécapitulatifDépensesMensuelles[[#This Row],[Code GL]],DépensesDétaillées[Date de facturation ],\">=\"&M$3,DépensesDétaillées[Date de facturation ],\"<=\"&M$4)+SUMIFS(Autres[Vérifiez la quantité],Autres[Code GL],RécapitulatifDépensesMensuelles[[#This Row],[Code GL]],Autres[Date de la demande du chèque],\">=\"&DATEVALUE(\" 1 \"&RécapitulatifDépensesMensuelles[[#Headers],[Octobre]]&_ANNÉE),Autres[Date de la demande du chèque],\"<=\"&M$4)","v":{"v":0,"d":"0.00 $"}},{"$f":"SUMIFS(DépensesDétaillées[Vérifiez la quantité],DépensesDétaillées[Code GL],RécapitulatifDépensesMensuelles[[#This Row],[Code GL]],DépensesDétaillées[Date de facturation ],\">=\"&N$3,DépensesDétaillées[Date de facturation ],\"<=\"&N$4)+SUMIFS(Autres[Vérifiez la quantité],Autres[Code GL],RécapitulatifDépensesMensuelles[[#This Row],[Code GL]],Autres[Date de la demande du chèque],\">=\"&DATEVALUE(\" 1 \"&RécapitulatifDépensesMensuelles[[#Headers],[Novembre]]&_ANNÉE),Autres[Date de la demande du chèque],\"<=\"&N$4)","v":{"v":0,"d":"0.00 $"}},{"$f":"SUMIFS(DépensesDétaillées[Vérifiez la quantité],DépensesDétaillées[Code GL],RécapitulatifDépensesMensuelles[[#This Row],[Code GL]],DépensesDétaillées[Date de facturation ],\">=\"&O$3,DépensesDétaillées[Date de facturation ],\"<=\"&O$4)+SUMIFS(Autres[Vérifiez la quantité],Autres[Code GL],RécapitulatifDépensesMensuelles[[#This Row],[Code GL]],Autres[Date de la demande du chèque],\">=\"&DATEVALUE(\" 1 \"&RécapitulatifDépensesMensuelles[[#Headers],[Décembre]]&_ANNÉE),Autres[Date de la demande du chèque],\"<=\"&O$4)","v":{"v":0,"d":"0.00 $"}},{"$f":"SUM(RécapitulatifDépensesMensuelles[[#This Row],[Janvier]:[Décembre]])","v":{"v":0,"d":"0.00 $"}}]
[null,4000,"Coûts du serveur",{"$f":"SUMIFS(DépensesDétaillées[Vérifiez la quantité],DépensesDétaillées[Code GL],RécapitulatifDépensesMensuelles[[#This Row],[Code GL]],DépensesDétaillées[Date de facturation ],\">=\"&D$3,DépensesDétaillées[Date de facturation ],\"<=\"&D$4)+SUMIFS(Autres[Vérifiez la quantité],Autres[Code GL],RécapitulatifDépensesMensuelles[[#This Row],[Code GL]],Autres[Date de la demande du chèque],\">=\"&DATEVALUE(\" 1 \"&RécapitulatifDépensesMensuelles[[#Headers],[Janvier]]&_ANNÉE),Autres[Date de la demande du chèque],\"<=\"&D$4)","v":{"v":0,"d":"0.00 $"}},{"$f":"SUMIFS(DépensesDétaillées[Vérifiez la quantité],DépensesDétaillées[Code GL],RécapitulatifDépensesMensuelles[[#This Row],[Code GL]],DépensesDétaillées[Date de facturation ],\">=\"&E$3,DépensesDétaillées[Date de facturation ],\"<=\"&E$4)+SUMIFS(Autres[Vérifiez la quantité],Autres[Code GL],RécapitulatifDépensesMensuelles[[#This Row],[Code GL]],Autres[Date de la demande du chèque],\">=\"&DATEVALUE(\" 1 \"&RécapitulatifDépensesMensuelles[[#Headers],[Février]]&_ANNÉE),Autres[Date de la demande du chèque],\"<=\"&E$4)","v":{"v":0,"d":"0.00 $"}},{"$f":"SUMIFS(DépensesDétaillées[Vérifiez la quantité],DépensesDétaillées[Code GL],RécapitulatifDépensesMensuelles[[#This Row],[Code GL]],DépensesDétaillées[Date de facturation ],\">=\"&F$3,DépensesDétaillées[Date de facturation ],\"<=\"&F$4)+SUMIFS(Autres[Vérifiez la quantité],Autres[Code GL],RécapitulatifDépensesMensuelles[[#This Row],[Code GL]],Autres[Date de la demande du chèque],\">=\"&DATEVALUE(\" 1 \"&RécapitulatifDépensesMensuelles[[#Headers],[Mars]]&_ANNÉE),Autres[Date de la demande du chèque],\"<=\"&F$4)","v":{"v":0,"d":"0.00 $"}},{"$f":"SUMIFS(DépensesDétaillées[Vérifiez la quantité],DépensesDétaillées[Code GL],RécapitulatifDépensesMensuelles[[#This Row],[Code GL]],DépensesDétaillées[Date de facturation ],\">=\"&G$3,DépensesDétaillées[Date de facturation ],\"<=\"&G$4)+SUMIFS(Autres[Vérifiez la quantité],Autres[Code GL],RécapitulatifDépensesMensuelles[[#This Row],[Code GL]],Autres[Date de la demande du chèque],\">=\"&DATEVALUE(\" 1 \"&RécapitulatifDépensesMensuelles[[#Headers],[Avril]]&_ANNÉE),Autres[Date de la demande du chèque],\"<=\"&G$4)","v":{"v":0,"d":"0.00 $"}},{"$f":"SUMIFS(DépensesDétaillées[Vérifiez la quantité],DépensesDétaillées[Code GL],RécapitulatifDépensesMensuelles[[#This Row],[Code GL]],DépensesDétaillées[Date de facturation ],\">=\"&H$3,DépensesDétaillées[Date de facturation ],\"<=\"&H$4)+SUMIFS(Autres[Vérifiez la quantité],Autres[Code GL],RécapitulatifDépensesMensuelles[[#This Row],[Code GL]],Autres[Date de la demande du chèque],\">=\"&DATEVALUE(\" 1 \"&RécapitulatifDépensesMensuelles[[#Headers],[Mai]]&_ANNÉE),Autres[Date de la demande du chèque],\"<=\"&H$4)","v":{"v":0,"d":"0.00 $"}},{"$f":"SUMIFS(DépensesDétaillées[Vérifiez la quantité],DépensesDétaillées[Code GL],RécapitulatifDépensesMensuelles[[#This Row],[Code GL]],DépensesDétaillées[Date de facturation ],\">=\"&I$3,DépensesDétaillées[Date de facturation ],\"<=\"&I$4)+SUMIFS(Autres[Vérifiez la quantité],Autres[Code GL],RécapitulatifDépensesMensuelles[[#This Row],[Code GL]],Autres[Date de la demande du chèque],\">=\"&DATEVALUE(\" 1 \"&RécapitulatifDépensesMensuelles[[#Headers],[Juin]]&_ANNÉE),Autres[Date de la demande du chèque],\"<=\"&I$4)","v":{"v":0,"d":"0.00 $"}},{"$f":"SUMIFS(DépensesDétaillées[Vérifiez la quantité],DépensesDétaillées[Code GL],RécapitulatifDépensesMensuelles[[#This Row],[Code GL]],DépensesDétaillées[Date de facturation ],\">=\"&J$3,DépensesDétaillées[Date de facturation ],\"<=\"&J$4)+SUMIFS(Autres[Vérifiez la quantité],Autres[Code GL],RécapitulatifDépensesMensuelles[[#This Row],[Code GL]],Autres[Date de la demande du chèque],\">=\"&DATEVALUE(\" 1 \"&RécapitulatifDépensesMensuelles[[#Headers],[Juillet]]&_ANNÉE),Autres[Date de la demande du chèque],\"<=\"&J$4)","v":{"v":0,"d":"0.00 $"}},{"$f":"SUMIFS(DépensesDétaillées[Vérifiez la quantité],DépensesDétaillées[Code GL],RécapitulatifDépensesMensuelles[[#This Row],[Code GL]],DépensesDétaillées[Date de facturation ],\">=\"&K$3,DépensesDétaillées[Date de facturation ],\"<=\"&K$4)+SUMIFS(Autres[Vérifiez la quantité],Autres[Code GL],RécapitulatifDépensesMensuelles[[#This Row],[Code GL]],Autres[Date de la demande du chèque],\">=\"&DATEVALUE(\" 1 \"&RécapitulatifDépensesMensuelles[[#Headers],[Août]]&_ANNÉE),Autres[Date de la demande du chèque],\"<=\"&K$4)","v":{"v":0,"d":"0.00 $"}},{"$f":"SUMIFS(DépensesDétaillées[Vérifiez la quantité],DépensesDétaillées[Code GL],RécapitulatifDépensesMensuelles[[#This Row],[Code GL]],DépensesDétaillées[Date de facturation ],\">=\"&L$3,DépensesDétaillées[Date de facturation ],\"<=\"&L$4)+SUMIFS(Autres[Vérifiez la quantité],Autres[Code GL],RécapitulatifDépensesMensuelles[[#This Row],[Code GL]],Autres[Date de la demande du chèque],\">=\"&DATEVALUE(\" 1 \"&RécapitulatifDépensesMensuelles[[#Headers],[Septembre]]&_ANNÉE),Autres[Date de la demande du chèque],\"<=\"&L$4)","v":{"v":0,"d":"0.00 $"}},{"$f":"SUMIFS(DépensesDétaillées[Vérifiez la quantité],DépensesDétaillées[Code GL],RécapitulatifDépensesMensuelles[[#This Row],[Code GL]],DépensesDétaillées[Date de facturation ],\">=\"&M$3,DépensesDétaillées[Date de facturation ],\"<=\"&M$4)+SUMIFS(Autres[Vérifiez la quantité],Autres[Code GL],RécapitulatifDépensesMensuelles[[#This Row],[Code GL]],Autres[Date de la demande du chèque],\">=\"&DATEVALUE(\" 1 \"&RécapitulatifDépensesMensuelles[[#Headers],[Octobre]]&_ANNÉE),Autres[Date de la demande du chèque],\"<=\"&M$4)","v":{"v":0,"d":"0.00 $"}},{"$f":"SUMIFS(DépensesDétaillées[Vérifiez la quantité],DépensesDétaillées[Code GL],RécapitulatifDépensesMensuelles[[#This Row],[Code GL]],DépensesDétaillées[Date de facturation ],\">=\"&N$3,DépensesDétaillées[Date de facturation ],\"<=\"&N$4)+SUMIFS(Autres[Vérifiez la quantité],Autres[Code GL],RécapitulatifDépensesMensuelles[[#This Row],[Code GL]],Autres[Date de la demande du chèque],\">=\"&DATEVALUE(\" 1 \"&RécapitulatifDépensesMensuelles[[#Headers],[Novembre]]&_ANNÉE),Autres[Date de la demande du chèque],\"<=\"&N$4)","v":{"v":0,"d":"0.00 $"}},{"$f":"SUMIFS(DépensesDétaillées[Vérifiez la quantité],DépensesDétaillées[Code GL],RécapitulatifDépensesMensuelles[[#This Row],[Code GL]],DépensesDétaillées[Date de facturation ],\">=\"&O$3,DépensesDétaillées[Date de facturation ],\"<=\"&O$4)+SUMIFS(Autres[Vérifiez la quantité],Autres[Code GL],RécapitulatifDépensesMensuelles[[#This Row],[Code GL]],Autres[Date de la demande du chèque],\">=\"&DATEVALUE(\" 1 \"&RécapitulatifDépensesMensuelles[[#Headers],[Décembre]]&_ANNÉE),Autres[Date de la demande du chèque],\"<=\"&O$4)","v":{"v":0,"d":"0.00 $"}},{"$f":"SUM(RécapitulatifDépensesMensuelles[[#This Row],[Janvier]:[Décembre]])","v":{"v":0,"d":"0.00 $"}}]
[null,5000,"Stocks",{"$f":"SUMIFS(DépensesDétaillées[Vérifiez la quantité],DépensesDétaillées[Code GL],RécapitulatifDépensesMensuelles[[#This Row],[Code GL]],DépensesDétaillées[Date de facturation ],\">=\"&D$3,DépensesDétaillées[Date de facturation ],\"<=\"&D$4)+SUMIFS(Autres[Vérifiez la quantité],Autres[Code GL],RécapitulatifDépensesMensuelles[[#This Row],[Code GL]],Autres[Date de la demande du chèque],\">=\"&DATEVALUE(\" 1 \"&RécapitulatifDépensesMensuelles[[#Headers],[Janvier]]&_ANNÉE),Autres[Date de la demande du chèque],\"<=\"&D$4)","v":{"v":0,"d":"0.00 $"}},{"$f":"SUMIFS(DépensesDétaillées[Vérifiez la quantité],DépensesDétaillées[Code GL],RécapitulatifDépensesMensuelles[[#This Row],[Code GL]],DépensesDétaillées[Date de facturation ],\">=\"&E$3,DépensesDétaillées[Date de facturation ],\"<=\"&E$4)+SUMIFS(Autres[Vérifiez la quantité],Autres[Code GL],RécapitulatifDépensesMensuelles[[#This Row],[Code GL]],Autres[Date de la demande du chèque],\">=\"&DATEVALUE(\" 1 \"&RécapitulatifDépensesMensuelles[[#Headers],[Février]]&_ANNÉE),Autres[Date de la demande du chèque],\"<=\"&E$4)","v":{"v":0,"d":"0.00 $"}},{"$f":"SUMIFS(DépensesDétaillées[Vérifiez la quantité],DépensesDétaillées[Code GL],RécapitulatifDépensesMensuelles[[#This Row],[Code GL]],DépensesDétaillées[Date de facturation ],\">=\"&F$3,DépensesDétaillées[Date de facturation ],\"<=\"&F$4)+SUMIFS(Autres[Vérifiez la quantité],Autres[Code GL],RécapitulatifDépensesMensuelles[[#This Row],[Code GL]],Autres[Date de la demande du chèque],\">=\"&DATEVALUE(\" 1 \"&RécapitulatifDépensesMensuelles[[#Headers],[Mars]]&_ANNÉE),Autres[Date de la demande du chèque],\"<=\"&F$4)","v":{"v":0,"d":"0.00 $"}},{"$f":"SUMIFS(DépensesDétaillées[Vérifiez la quantité],DépensesDétaillées[Code GL],RécapitulatifDépensesMensuelles[[#This Row],[Code GL]],DépensesDétaillées[Date de facturation ],\">=\"&G$3,DépensesDétaillées[Date de facturation ],\"<=\"&G$4)+SUMIFS(Autres[Vérifiez la quantité],Autres[Code GL],RécapitulatifDépensesMensuelles[[#This Row],[Code GL]],Autres[Date de la demande du chèque],\">=\"&DATEVALUE(\" 1 \"&RécapitulatifDépensesMensuelles[[#Headers],[Avril]]&_ANNÉE),Autres[Date de la demande du chèque],\"<=\"&G$4)","v":{"v":0,"d":"0.00 $"}},{"$f":"SUMIFS(DépensesDétaillées[Vérifiez la quantité],DépensesDétaillées[Code GL],RécapitulatifDépensesMensuelles[[#This Row],[Code GL]],DépensesDétaillées[Date de facturation ],\">=\"&H$3,DépensesDétaillées[Date de facturation ],\"<=\"&H$4)+SUMIFS(Autres[Vérifiez la quantité],Autres[Code GL],RécapitulatifDépensesMensuelles[[#This Row],[Code GL]],Autres[Date de la demande du chèque],\">=\"&DATEVALUE(\" 1 \"&RécapitulatifDépensesMensuelles[[#Headers],[Mai]]&_ANNÉE),Autres[Date de la demande du chèque],\"<=\"&H$4)","v":{"v":0,"d":"0.00 $"}},{"$f":"SUMIFS(DépensesDétaillées[Vérifiez la quantité],DépensesDétaillées[Code GL],RécapitulatifDépensesMensuelles[[#This Row],[Code GL]],DépensesDétaillées[Date de facturation ],\">=\"&I$3,DépensesDétaillées[Date de facturation ],\"<=\"&I$4)+SUMIFS(Autres[Vérifiez la quantité],Autres[Code GL],RécapitulatifDépensesMensuelles[[#This Row],[Code GL]],Autres[Date de la demande du chèque],\">=\"&DATEVALUE(\" 1 \"&RécapitulatifDépensesMensuelles[[#Headers],[Juin]]&_ANNÉE),Autres[Date de la demande du chèque],\"<=\"&I$4)","v":{"v":0,"d":"0.00 $"}},{"$f":"SUMIFS(DépensesDétaillées[Vérifiez la quantité],DépensesDétaillées[Code GL],RécapitulatifDépensesMensuelles[[#This Row],[Code GL]],DépensesDétaillées[Date de facturation ],\">=\"&J$3,DépensesDétaillées[Date de facturation ],\"<=\"&J$4)+SUMIFS(Autres[Vérifiez la quantité],Autres[Code GL],RécapitulatifDépensesMensuelles[[#This Row],[Code GL]],Autres[Date de la demande du chèque],\">=\"&DATEVALUE(\" 1 \"&RécapitulatifDépensesMensuelles[[#Headers],[Juillet]]&_ANNÉE),Autres[Date de la demande du chèque],\"<=\"&J$4)","v":{"v":0,"d":"0.00 $"}},{"$f":"SUMIFS(DépensesDétaillées[Vérifiez la quantité],DépensesDétaillées[Code GL],RécapitulatifDépensesMensuelles[[#This Row],[Code GL]],DépensesDétaillées[Date de facturation ],\">=\"&K$3,DépensesDétaillées[Date de facturation ],\"<=\"&K$4)+SUMIFS(Autres[Vérifiez la quantité],Autres[Code GL],RécapitulatifDépensesMensuelles[[#This Row],[Code GL]],Autres[Date de la demande du chèque],\">=\"&DATEVALUE(\" 1 \"&RécapitulatifDépensesMensuelles[[#Headers],[Août]]&_ANNÉE),Autres[Date de la demande du chèque],\"<=\"&K$4)","v":{"v":0,"d":"0.00 $"}},{"$f":"SUMIFS(DépensesDétaillées[Vérifiez la quantité],DépensesDétaillées[Code GL],RécapitulatifDépensesMensuelles[[#This Row],[Code GL]],DépensesDétaillées[Date de facturation ],\">=\"&L$3,DépensesDétaillées[Date de facturation ],\"<=\"&L$4)+SUMIFS(Autres[Vérifiez la quantité],Autres[Code GL],RécapitulatifDépensesMensuelles[[#This Row],[Code GL]],Autres[Date de la demande du chèque],\">=\"&DATEVALUE(\" 1 \"&RécapitulatifDépensesMensuelles[[#Headers],[Septembre]]&_ANNÉE),Autres[Date de la demande du chèque],\"<=\"&L$4)","v":{"v":0,"d":"0.00 $"}},{"$f":"SUMIFS(DépensesDétaillées[Vérifiez la quantité],DépensesDétaillées[Code GL],RécapitulatifDépensesMensuelles[[#This Row],[Code GL]],DépensesDétaillées[Date de facturation ],\">=\"&M$3,DépensesDétaillées[Date de facturation ],\"<=\"&M$4)+SUMIFS(Autres[Vérifiez la quantité],Autres[Code GL],RécapitulatifDépensesMensuelles[[#This Row],[Code GL]],Autres[Date de la demande du chèque],\">=\"&DATEVALUE(\" 1 \"&RécapitulatifDépensesMensuelles[[#Headers],[Octobre]]&_ANNÉE),Autres[Date de la demande du chèque],\"<=\"&M$4)","v":{"v":0,"d":"0.00 $"}},{"$f":"SUMIFS(DépensesDétaillées[Vérifiez la quantité],DépensesDétaillées[Code GL],RécapitulatifDépensesMensuelles[[#This Row],[Code GL]],DépensesDétaillées[Date de facturation ],\">=\"&N$3,DépensesDétaillées[Date de facturation ],\"<=\"&N$4)+SUMIFS(Autres[Vérifiez la quantité],Autres[Code GL],RécapitulatifDépensesMensuelles[[#This Row],[Code GL]],Autres[Date de la demande du chèque],\">=\"&DATEVALUE(\" 1 \"&RécapitulatifDépensesMensuelles[[#Headers],[Novembre]]&_ANNÉE),Autres[Date de la demande du chèque],\"<=\"&N$4)","v":{"v":0,"d":"0.00 $"}},{"$f":"SUMIFS(DépensesDétaillées[Vérifiez la quantité],DépensesDétaillées[Code GL],RécapitulatifDépensesMensuelles[[#This Row],[Code GL]],DépensesDétaillées[Date de facturation ],\">=\"&O$3,DépensesDétaillées[Date de facturation ],\"<=\"&O$4)+SUMIFS(Autres[Vérifiez la quantité],Autres[Code GL],RécapitulatifDépensesMensuelles[[#This Row],[Code GL]],Autres[Date de la demande du chèque],\">=\"&DATEVALUE(\" 1 \"&RécapitulatifDépensesMensuelles[[#Headers],[Décembre]]&_ANNÉE),Autres[Date de la demande du chèque],\"<=\"&O$4)","v":{"v":0,"d":"0.00 $"}},{"$f":"SUM(RécapitulatifDépensesMensuelles[[#This Row],[Janvier]:[Décembre]])","v":{"v":0,"d":"0.00 $"}}]
[null,6000,"Dépenses client",{"$f":"SUMIFS(DépensesDétaillées[Vérifiez la quantité],DépensesDétaillées[Code GL],RécapitulatifDépensesMensuelles[[#This Row],[Code GL]],DépensesDétaillées[Date de facturation ],\">=\"&D$3,DépensesDétaillées[Date de facturation ],\"<=\"&D$4)+SUMIFS(Autres[Vérifiez la quantité],Autres[Code GL],RécapitulatifDépensesMensuelles[[#This Row],[Code GL]],Autres[Date de la demande du chèque],\">=\"&DATEVALUE(\" 1 \"&RécapitulatifDépensesMensuelles[[#Headers],[Janvier]]&_ANNÉE),Autres[Date de la demande du chèque],\"<=\"&D$4)","v":{"v":0,"d":"0.00 $"}},{"$f":"SUMIFS(DépensesDétaillées[Vérifiez la quantité],DépensesDétaillées[Code GL],RécapitulatifDépensesMensuelles[[#This Row],[Code GL]],DépensesDétaillées[Date de facturation ],\">=\"&E$3,DépensesDétaillées[Date de facturation ],\"<=\"&E$4)+SUMIFS(Autres[Vérifiez la quantité],Autres[Code GL],RécapitulatifDépensesMensuelles[[#This Row],[Code GL]],Autres[Date de la demande du chèque],\">=\"&DATEVALUE(\" 1 \"&RécapitulatifDépensesMensuelles[[#Headers],[Février]]&_ANNÉE),Autres[Date de la demande du chèque],\"<=\"&E$4)","v":{"v":0,"d":"0.00 $"}},{"$f":"SUMIFS(DépensesDétaillées[Vérifiez la quantité],DépensesDétaillées[Code GL],RécapitulatifDépensesMensuelles[[#This Row],[Code GL]],DépensesDétaillées[Date de facturation ],\">=\"&F$3,DépensesDétaillées[Date de facturation ],\"<=\"&F$4)+SUMIFS(Autres[Vérifiez la quantité],Autres[Code GL],RécapitulatifDépensesMensuelles[[#This Row],[Code GL]],Autres[Date de la demande du chèque],\">=\"&DATEVALUE(\" 1 \"&RécapitulatifDépensesMensuelles[[#Headers],[Mars]]&_ANNÉE),Autres[Date de la demande du chèque],\"<=\"&F$4)","v":{"v":0,"d":"0.00 $"}},{"$f":"SUMIFS(DépensesDétaillées[Vérifiez la quantité],DépensesDétaillées[Code GL],RécapitulatifDépensesMensuelles[[#This Row],[Code GL]],DépensesDétaillées[Date de facturation ],\">=\"&G$3,DépensesDétaillées[Date de facturation ],\"<=\"&G$4)+SUMIFS(Autres[Vérifiez la quantité],Autres[Code GL],RécapitulatifDépensesMensuelles[[#This Row],[Code GL]],Autres[Date de la demande du chèque],\">=\"&DATEVALUE(\" 1 \"&RécapitulatifDépensesMensuelles[[#Headers],[Avril]]&_ANNÉE),Autres[Date de la demande du chèque],\"<=\"&G$4)","v":{"v":0,"d":"0.00 $"}},{"$f":"SUMIFS(DépensesDétaillées[Vérifiez la quantité],DépensesDétaillées[Code GL],RécapitulatifDépensesMensuelles[[#This Row],[Code GL]],DépensesDétaillées[Date de facturation ],\">=\"&H$3,DépensesDétaillées[Date de facturation ],\"<=\"&H$4)+SUMIFS(Autres[Vérifiez la quantité],Autres[Code GL],RécapitulatifDépensesMensuelles[[#This Row],[Code GL]],Autres[Date de la demande du chèque],\">=\"&DATEVALUE(\" 1 \"&RécapitulatifDépensesMensuelles[[#Headers],[Mai]]&_ANNÉE),Autres[Date de la demande du chèque],\"<=\"&H$4)","v":{"v":0,"d":"0.00 $"}},{"$f":"SUMIFS(DépensesDétaillées[Vérifiez la quantité],DépensesDétaillées[Code GL],RécapitulatifDépensesMensuelles[[#This Row],[Code GL]],DépensesDétaillées[Date de facturation ],\">=\"&I$3,DépensesDétaillées[Date de facturation ],\"<=\"&I$4)+SUMIFS(Autres[Vérifiez la quantité],Autres[Code GL],RécapitulatifDépensesMensuelles[[#This Row],[Code GL]],Autres[Date de la demande du chèque],\">=\"&DATEVALUE(\" 1 \"&RécapitulatifDépensesMensuelles[[#Headers],[Juin]]&_ANNÉE),Autres[Date de la demande du chèque],\"<=\"&I$4)","v":{"v":0,"d":"0.00 $"}},{"$f":"SUMIFS(DépensesDétaillées[Vérifiez la quantité],DépensesDétaillées[Code GL],RécapitulatifDépensesMensuelles[[#This Row],[Code GL]],DépensesDétaillées[Date de facturation ],\">=\"&J$3,DépensesDétaillées[Date de facturation ],\"<=\"&J$4)+SUMIFS(Autres[Vérifiez la quantité],Autres[Code GL],RécapitulatifDépensesMensuelles[[#This Row],[Code GL]],Autres[Date de la demande du chèque],\">=\"&DATEVALUE(\" 1 \"&RécapitulatifDépensesMensuelles[[#Headers],[Juillet]]&_ANNÉE),Autres[Date de la demande du chèque],\"<=\"&J$4)","v":{"v":0,"d":"0.00 $"}},{"$f":"SUMIFS(DépensesDétaillées[Vérifiez la quantité],DépensesDétaillées[Code GL],RécapitulatifDépensesMensuelles[[#This Row],[Code GL]],DépensesDétaillées[Date de facturation ],\">=\"&K$3,DépensesDétaillées[Date de facturation ],\"<=\"&K$4)+SUMIFS(Autres[Vérifiez la quantité],Autres[Code GL],RécapitulatifDépensesMensuelles[[#This Row],[Code GL]],Autres[Date de la demande du chèque],\">=\"&DATEVALUE(\" 1 \"&RécapitulatifDépensesMensuelles[[#Headers],[Août]]&_ANNÉE),Autres[Date de la demande du chèque],\"<=\"&K$4)","v":{"v":0,"d":"0.00 $"}},{"$f":"SUMIFS(DépensesDétaillées[Vérifiez la quantité],DépensesDétaillées[Code GL],RécapitulatifDépensesMensuelles[[#This Row],[Code GL]],DépensesDétaillées[Date de facturation ],\">=\"&L$3,DépensesDétaillées[Date de facturation ],\"<=\"&L$4)+SUMIFS(Autres[Vérifiez la quantité],Autres[Code GL],RécapitulatifDépensesMensuelles[[#This Row],[Code GL]],Autres[Date de la demande du chèque],\">=\"&DATEVALUE(\" 1 \"&RécapitulatifDépensesMensuelles[[#Headers],[Septembre]]&_ANNÉE),Autres[Date de la demande du chèque],\"<=\"&L$4)","v":{"v":0,"d":"0.00 $"}},{"$f":"SUMIFS(DépensesDétaillées[Vérifiez la quantité],DépensesDétaillées[Code GL],RécapitulatifDépensesMensuelles[[#This Row],[Code GL]],DépensesDétaillées[Date de facturation ],\">=\"&M$3,DépensesDétaillées[Date de facturation ],\"<=\"&M$4)+SUMIFS(Autres[Vérifiez la quantité],Autres[Code GL],RécapitulatifDépensesMensuelles[[#This Row],[Code GL]],Autres[Date de la demande du chèque],\">=\"&DATEVALUE(\" 1 \"&RécapitulatifDépensesMensuelles[[#Headers],[Octobre]]&_ANNÉE),Autres[Date de la demande du chèque],\"<=\"&M$4)","v":{"v":0,"d":"0.00 $"}},{"$f":"SUMIFS(DépensesDétaillées[Vérifiez la quantité],DépensesDétaillées[Code GL],RécapitulatifDépensesMensuelles[[#This Row],[Code GL]],DépensesDétaillées[Date de facturation ],\">=\"&N$3,DépensesDétaillées[Date de facturation ],\"<=\"&N$4)+SUMIFS(Autres[Vérifiez la quantité],Autres[Code GL],RécapitulatifDépensesMensuelles[[#This Row],[Code GL]],Autres[Date de la demande du chèque],\">=\"&DATEVALUE(\" 1 \"&RécapitulatifDépensesMensuelles[[#Headers],[Novembre]]&_ANNÉE),Autres[Date de la demande du chèque],\"<=\"&N$4)","v":{"v":0,"d":"0.00 $"}},{"$f":"SUMIFS(DépensesDétaillées[Vérifiez la quantité],DépensesDétaillées[Code GL],RécapitulatifDépensesMensuelles[[#This Row],[Code GL]],DépensesDétaillées[Date de facturation ],\">=\"&O$3,DépensesDétaillées[Date de facturation ],\"<=\"&O$4)+SUMIFS(Autres[Vérifiez la quantité],Autres[Code GL],RécapitulatifDépensesMensuelles[[#This Row],[Code GL]],Autres[Date de la demande du chèque],\">=\"&DATEVALUE(\" 1 \"&RécapitulatifDépensesMensuelles[[#Headers],[Décembre]]&_ANNÉE),Autres[Date de la demande du chèque],\"<=\"&O$4)","v":{"v":0,"d":"0.00 $"}},{"$f":"SUM(RécapitulatifDépensesMensuelles[[#This Row],[Janvier]:[Décembre]])","v":{"v":0,"d":"0.00 $"}}]
[null,7000,"Ordinateurs",{"$f":"SUMIFS(DépensesDétaillées[Vérifiez la quantité],DépensesDétaillées[Code GL],RécapitulatifDépensesMensuelles[[#This Row],[Code GL]],DépensesDétaillées[Date de facturation ],\">=\"&D$3,DépensesDétaillées[Date de facturation ],\"<=\"&D$4)+SUMIFS(Autres[Vérifiez la quantité],Autres[Code GL],RécapitulatifDépensesMensuelles[[#This Row],[Code GL]],Autres[Date de la demande du chèque],\">=\"&DATEVALUE(\" 1 \"&RécapitulatifDépensesMensuelles[[#Headers],[Janvier]]&_ANNÉE),Autres[Date de la demande du chèque],\"<=\"&D$4)","v":{"v":0,"d":"0.00 $"}},{"$f":"SUMIFS(DépensesDétaillées[Vérifiez la quantité],DépensesDétaillées[Code GL],RécapitulatifDépensesMensuelles[[#This Row],[Code GL]],DépensesDétaillées[Date de facturation ],\">=\"&E$3,DépensesDétaillées[Date de facturation ],\"<=\"&E$4)+SUMIFS(Autres[Vérifiez la quantité],Autres[Code GL],RécapitulatifDépensesMensuelles[[#This Row],[Code GL]],Autres[Date de la demande du chèque],\">=\"&DATEVALUE(\" 1 \"&RécapitulatifDépensesMensuelles[[#Headers],[Février]]&_ANNÉE),Autres[Date de la demande du chèque],\"<=\"&E$4)","v":{"v":0,"d":"0.00 $"}},{"$f":"SUMIFS(DépensesDétaillées[Vérifiez la quantité],DépensesDétaillées[Code GL],RécapitulatifDépensesMensuelles[[#This Row],[Code GL]],DépensesDétaillées[Date de facturation ],\">=\"&F$3,DépensesDétaillées[Date de facturation ],\"<=\"&F$4)+SUMIFS(Autres[Vérifiez la quantité],Autres[Code GL],RécapitulatifDépensesMensuelles[[#This Row],[Code GL]],Autres[Date de la demande du chèque],\">=\"&DATEVALUE(\" 1 \"&RécapitulatifDépensesMensuelles[[#Headers],[Mars]]&_ANNÉE),Autres[Date de la demande du chèque],\"<=\"&F$4)","v":{"v":0,"d":"0.00 $"}},{"$f":"SUMIFS(DépensesDétaillées[Vérifiez la quantité],DépensesDétaillées[Code GL],RécapitulatifDépensesMensuelles[[#This Row],[Code GL]],DépensesDétaillées[Date de facturation ],\">=\"&G$3,DépensesDétaillées[Date de facturation ],\"<=\"&G$4)+SUMIFS(Autres[Vérifiez la quantité],Autres[Code GL],RécapitulatifDépensesMensuelles[[#This Row],[Code GL]],Autres[Date de la demande du chèque],\">=\"&DATEVALUE(\" 1 \"&RécapitulatifDépensesMensuelles[[#Headers],[Avril]]&_ANNÉE),Autres[Date de la demande du chèque],\"<=\"&G$4)","v":{"v":0,"d":"0.00 $"}},{"$f":"SUMIFS(DépensesDétaillées[Vérifiez la quantité],DépensesDétaillées[Code GL],RécapitulatifDépensesMensuelles[[#This Row],[Code GL]],DépensesDétaillées[Date de facturation ],\">=\"&H$3,DépensesDétaillées[Date de facturation ],\"<=\"&H$4)+SUMIFS(Autres[Vérifiez la quantité],Autres[Code GL],RécapitulatifDépensesMensuelles[[#This Row],[Code GL]],Autres[Date de la demande du chèque],\">=\"&DATEVALUE(\" 1 \"&RécapitulatifDépensesMensuelles[[#Headers],[Mai]]&_ANNÉE),Autres[Date de la demande du chèque],\"<=\"&H$4)","v":{"v":0,"d":"0.00 $"}},{"$f":"SUMIFS(DépensesDétaillées[Vérifiez la quantité],DépensesDétaillées[Code GL],RécapitulatifDépensesMensuelles[[#This Row],[Code GL]],DépensesDétaillées[Date de facturation ],\">=\"&I$3,DépensesDétaillées[Date de facturation ],\"<=\"&I$4)+SUMIFS(Autres[Vérifiez la quantité],Autres[Code GL],RécapitulatifDépensesMensuelles[[#This Row],[Code GL]],Autres[Date de la demande du chèque],\">=\"&DATEVALUE(\" 1 \"&RécapitulatifDépensesMensuelles[[#Headers],[Juin]]&_ANNÉE),Autres[Date de la demande du chèque],\"<=\"&I$4)","v":{"v":0,"d":"0.00 $"}},{"$f":"SUMIFS(DépensesDétaillées[Vérifiez la quantité],DépensesDétaillées[Code GL],RécapitulatifDépensesMensuelles[[#This Row],[Code GL]],DépensesDétaillées[Date de facturation ],\">=\"&J$3,DépensesDétaillées[Date de facturation ],\"<=\"&J$4)+SUMIFS(Autres[Vérifiez la quantité],Autres[Code GL],RécapitulatifDépensesMensuelles[[#This Row],[Code GL]],Autres[Date de la demande du chèque],\">=\"&DATEVALUE(\" 1 \"&RécapitulatifDépensesMensuelles[[#Headers],[Juillet]]&_ANNÉE),Autres[Date de la demande du chèque],\"<=\"&J$4)","v":{"v":0,"d":"0.00 $"}},{"$f":"SUMIFS(DépensesDétaillées[Vérifiez la quantité],DépensesDétaillées[Code GL],RécapitulatifDépensesMensuelles[[#This Row],[Code GL]],DépensesDétaillées[Date de facturation ],\">=\"&K$3,DépensesDétaillées[Date de facturation ],\"<=\"&K$4)+SUMIFS(Autres[Vérifiez la quantité],Autres[Code GL],RécapitulatifDépensesMensuelles[[#This Row],[Code GL]],Autres[Date de la demande du chèque],\">=\"&DATEVALUE(\" 1 \"&RécapitulatifDépensesMensuelles[[#Headers],[Août]]&_ANNÉE),Autres[Date de la demande du chèque],\"<=\"&K$4)","v":{"v":0,"d":"0.00 $"}},{"$f":"SUMIFS(DépensesDétaillées[Vérifiez la quantité],DépensesDétaillées[Code GL],RécapitulatifDépensesMensuelles[[#This Row],[Code GL]],DépensesDétaillées[Date de facturation ],\">=\"&L$3,DépensesDétaillées[Date de facturation ],\"<=\"&L$4)+SUMIFS(Autres[Vérifiez la quantité],Autres[Code GL],RécapitulatifDépensesMensuelles[[#This Row],[Code GL]],Autres[Date de la demande du chèque],\">=\"&DATEVALUE(\" 1 \"&RécapitulatifDépensesMensuelles[[#Headers],[Septembre]]&_ANNÉE),Autres[Date de la demande du chèque],\"<=\"&L$4)","v":{"v":0,"d":"0.00 $"}},{"$f":"SUMIFS(DépensesDétaillées[Vérifiez la quantité],DépensesDétaillées[Code GL],RécapitulatifDépensesMensuelles[[#This Row],[Code GL]],DépensesDétaillées[Date de facturation ],\">=\"&M$3,DépensesDétaillées[Date de facturation ],\"<=\"&M$4)+SUMIFS(Autres[Vérifiez la quantité],Autres[Code GL],RécapitulatifDépensesMensuelles[[#This Row],[Code GL]],Autres[Date de la demande du chèque],\">=\"&DATEVALUE(\" 1 \"&RécapitulatifDépensesMensuelles[[#Headers],[Octobre]]&_ANNÉE),Autres[Date de la demande du chèque],\"<=\"&M$4)","v":{"v":0,"d":"0.00 $"}},{"$f":"SUMIFS(DépensesDétaillées[Vérifiez la quantité],DépensesDétaillées[Code GL],RécapitulatifDépensesMensuelles[[#This Row],[Code GL]],DépensesDétaillées[Date de facturation ],\">=\"&N$3,DépensesDétaillées[Date de facturation ],\"<=\"&N$4)+SUMIFS(Autres[Vérifiez la quantité],Autres[Code GL],RécapitulatifDépensesMensuelles[[#This Row],[Code GL]],Autres[Date de la demande du chèque],\">=\"&DATEVALUE(\" 1 \"&RécapitulatifDépensesMensuelles[[#Headers],[Novembre]]&_ANNÉE),Autres[Date de la demande du chèque],\"<=\"&N$4)","v":{"v":0,"d":"0.00 $"}},{"$f":"SUMIFS(DépensesDétaillées[Vérifiez la quantité],DépensesDétaillées[Code GL],RécapitulatifDépensesMensuelles[[#This Row],[Code GL]],DépensesDétaillées[Date de facturation ],\">=\"&O$3,DépensesDétaillées[Date de facturation ],\"<=\"&O$4)+SUMIFS(Autres[Vérifiez la quantité],Autres[Code GL],RécapitulatifDépensesMensuelles[[#This Row],[Code GL]],Autres[Date de la demande du chèque],\">=\"&DATEVALUE(\" 1 \"&RécapitulatifDépensesMensuelles[[#Headers],[Décembre]]&_ANNÉE),Autres[Date de la demande du chèque],\"<=\"&O$4)","v":{"v":0,"d":"0.00 $"}},{"$f":"SUM(RécapitulatifDépensesMensuelles[[#This Row],[Janvier]:[Décembre]])","v":{"v":0,"d":"0.00 $"}}]
[null,8000,"Plan médical",{"$f":"SUMIFS(DépensesDétaillées[Vérifiez la quantité],DépensesDétaillées[Code GL],RécapitulatifDépensesMensuelles[[#This Row],[Code GL]],DépensesDétaillées[Date de facturation ],\">=\"&D$3,DépensesDétaillées[Date de facturation ],\"<=\"&D$4)+SUMIFS(Autres[Vérifiez la quantité],Autres[Code GL],RécapitulatifDépensesMensuelles[[#This Row],[Code GL]],Autres[Date de la demande du chèque],\">=\"&DATEVALUE(\" 1 \"&RécapitulatifDépensesMensuelles[[#Headers],[Janvier]]&_ANNÉE),Autres[Date de la demande du chèque],\"<=\"&D$4)","v":{"v":0,"d":"0.00 $"}},{"$f":"SUMIFS(DépensesDétaillées[Vérifiez la quantité],DépensesDétaillées[Code GL],RécapitulatifDépensesMensuelles[[#This Row],[Code GL]],DépensesDétaillées[Date de facturation ],\">=\"&E$3,DépensesDétaillées[Date de facturation ],\"<=\"&E$4)+SUMIFS(Autres[Vérifiez la quantité],Autres[Code GL],RécapitulatifDépensesMensuelles[[#This Row],[Code GL]],Autres[Date de la demande du chèque],\">=\"&DATEVALUE(\" 1 \"&RécapitulatifDépensesMensuelles[[#Headers],[Février]]&_ANNÉE),Autres[Date de la demande du chèque],\"<=\"&E$4)","v":{"v":0,"d":"0.00 $"}},{"$f":"SUMIFS(DépensesDétaillées[Vérifiez la quantité],DépensesDétaillées[Code GL],RécapitulatifDépensesMensuelles[[#This Row],[Code GL]],DépensesDétaillées[Date de facturation ],\">=\"&F$3,DépensesDétaillées[Date de facturation ],\"<=\"&F$4)+SUMIFS(Autres[Vérifiez la quantité],Autres[Code GL],RécapitulatifDépensesMensuelles[[#This Row],[Code GL]],Autres[Date de la demande du chèque],\">=\"&DATEVALUE(\" 1 \"&RécapitulatifDépensesMensuelles[[#Headers],[Mars]]&_ANNÉE),Autres[Date de la demande du chèque],\"<=\"&F$4)","v":{"v":0,"d":"0.00 $"}},{"$f":"SUMIFS(DépensesDétaillées[Vérifiez la quantité],DépensesDétaillées[Code GL],RécapitulatifDépensesMensuelles[[#This Row],[Code GL]],DépensesDétaillées[Date de facturation ],\">=\"&G$3,DépensesDétaillées[Date de facturation ],\"<=\"&G$4)+SUMIFS(Autres[Vérifiez la quantité],Autres[Code GL],RécapitulatifDépensesMensuelles[[#This Row],[Code GL]],Autres[Date de la demande du chèque],\">=\"&DATEVALUE(\" 1 \"&RécapitulatifDépensesMensuelles[[#Headers],[Avril]]&_ANNÉE),Autres[Date de la demande du chèque],\"<=\"&G$4)","v":{"v":0,"d":"0.00 $"}},{"$f":"SUMIFS(DépensesDétaillées[Vérifiez la quantité],DépensesDétaillées[Code GL],RécapitulatifDépensesMensuelles[[#This Row],[Code GL]],DépensesDétaillées[Date de facturation ],\">=\"&H$3,DépensesDétaillées[Date de facturation ],\"<=\"&H$4)+SUMIFS(Autres[Vérifiez la quantité],Autres[Code GL],RécapitulatifDépensesMensuelles[[#This Row],[Code GL]],Autres[Date de la demande du chèque],\">=\"&DATEVALUE(\" 1 \"&RécapitulatifDépensesMensuelles[[#Headers],[Mai]]&_ANNÉE),Autres[Date de la demande du chèque],\"<=\"&H$4)","v":{"v":0,"d":"0.00 $"}},{"$f":"SUMIFS(DépensesDétaillées[Vérifiez la quantité],DépensesDétaillées[Code GL],RécapitulatifDépensesMensuelles[[#This Row],[Code GL]],DépensesDétaillées[Date de facturation ],\">=\"&I$3,DépensesDétaillées[Date de facturation ],\"<=\"&I$4)+SUMIFS(Autres[Vérifiez la quantité],Autres[Code GL],RécapitulatifDépensesMensuelles[[#This Row],[Code GL]],Autres[Date de la demande du chèque],\">=\"&DATEVALUE(\" 1 \"&RécapitulatifDépensesMensuelles[[#Headers],[Juin]]&_ANNÉE),Autres[Date de la demande du chèque],\"<=\"&I$4)","v":{"v":0,"d":"0.00 $"}},{"$f":"SUMIFS(DépensesDétaillées[Vérifiez la quantité],DépensesDétaillées[Code GL],RécapitulatifDépensesMensuelles[[#This Row],[Code GL]],DépensesDétaillées[Date de facturation ],\">=\"&J$3,DépensesDétaillées[Date de facturation ],\"<=\"&J$4)+SUMIFS(Autres[Vérifiez la quantité],Autres[Code GL],RécapitulatifDépensesMensuelles[[#This Row],[Code GL]],Autres[Date de la demande du chèque],\">=\"&DATEVALUE(\" 1 \"&RécapitulatifDépensesMensuelles[[#Headers],[Juillet]]&_ANNÉE),Autres[Date de la demande du chèque],\"<=\"&J$4)","v":{"v":0,"d":"0.00 $"}},{"$f":"SUMIFS(DépensesDétaillées[Vérifiez la quantité],DépensesDétaillées[Code GL],RécapitulatifDépensesMensuelles[[#This Row],[Code GL]],DépensesDétaillées[Date de facturation ],\">=\"&K$3,DépensesDétaillées[Date de facturation ],\"<=\"&K$4)+SUMIFS(Autres[Vérifiez la quantité],Autres[Code GL],RécapitulatifDépensesMensuelles[[#This Row],[Code GL]],Autres[Date de la demande du chèque],\">=\"&DATEVALUE(\" 1 \"&RécapitulatifDépensesMensuelles[[#Headers],[Août]]&_ANNÉE),Autres[Date de la demande du chèque],\"<=\"&K$4)","v":{"v":0,"d":"0.00 $"}},{"$f":"SUMIFS(DépensesDétaillées[Vérifiez la quantité],DépensesDétaillées[Code GL],RécapitulatifDépensesMensuelles[[#This Row],[Code GL]],DépensesDétaillées[Date de facturation ],\">=\"&L$3,DépensesDétaillées[Date de facturation ],\"<=\"&L$4)+SUMIFS(Autres[Vérifiez la quantité],Autres[Code GL],RécapitulatifDépensesMensuelles[[#This Row],[Code GL]],Autres[Date de la demande du chèque],\">=\"&DATEVALUE(\" 1 \"&RécapitulatifDépensesMensuelles[[#Headers],[Septembre]]&_ANNÉE),Autres[Date de la demande du chèque],\"<=\"&L$4)","v":{"v":0,"d":"0.00 $"}},{"$f":"SUMIFS(DépensesDétaillées[Vérifiez la quantité],DépensesDétaillées[Code GL],RécapitulatifDépensesMensuelles[[#This Row],[Code GL]],DépensesDétaillées[Date de facturation ],\">=\"&M$3,DépensesDétaillées[Date de facturation ],\"<=\"&M$4)+SUMIFS(Autres[Vérifiez la quantité],Autres[Code GL],RécapitulatifDépensesMensuelles[[#This Row],[Code GL]],Autres[Date de la demande du chèque],\">=\"&DATEVALUE(\" 1 \"&RécapitulatifDépensesMensuelles[[#Headers],[Octobre]]&_ANNÉE),Autres[Date de la demande du chèque],\"<=\"&M$4)","v":{"v":0,"d":"0.00 $"}},{"$f":"SUMIFS(DépensesDétaillées[Vérifiez la quantité],DépensesDétaillées[Code GL],RécapitulatifDépensesMensuelles[[#This Row],[Code GL]],DépensesDétaillées[Date de facturation ],\">=\"&N$3,DépensesDétaillées[Date de facturation ],\"<=\"&N$4)+SUMIFS(Autres[Vérifiez la quantité],Autres[Code GL],RécapitulatifDépensesMensuelles[[#This Row],[Code GL]],Autres[Date de la demande du chèque],\">=\"&DATEVALUE(\" 1 \"&RécapitulatifDépensesMensuelles[[#Headers],[Novembre]]&_ANNÉE),Autres[Date de la demande du chèque],\"<=\"&N$4)","v":{"v":0,"d":"0.00 $"}},{"$f":"SUMIFS(DépensesDétaillées[Vérifiez la quantité],DépensesDétaillées[Code GL],RécapitulatifDépensesMensuelles[[#This Row],[Code GL]],DépensesDétaillées[Date de facturation ],\">=\"&O$3,DépensesDétaillées[Date de facturation ],\"<=\"&O$4)+SUMIFS(Autres[Vérifiez la quantité],Autres[Code GL],RécapitulatifDépensesMensuelles[[#This Row],[Code GL]],Autres[Date de la demande du chèque],\">=\"&DATEVALUE(\" 1 \"&RécapitulatifDépensesMensuelles[[#Headers],[Décembre]]&_ANNÉE),Autres[Date de la demande du chèque],\"<=\"&O$4)","v":{"v":0,"d":"0.00 $"}},{"$f":"SUM(RécapitulatifDépensesMensuelles[[#This Row],[Janvier]:[Décembre]])","v":{"v":0,"d":"0.00 $"}}]
[null,9000,"Coûts de construction",{"$f":"SUMIFS(DépensesDétaillées[Vérifiez la quantité],DépensesDétaillées[Code GL],RécapitulatifDépensesMensuelles[[#This Row],[Code GL]],DépensesDétaillées[Date de facturation ],\">=\"&D$3,DépensesDétaillées[Date de facturation ],\"<=\"&D$4)+SUMIFS(Autres[Vérifiez la quantité],Autres[Code GL],RécapitulatifDépensesMensuelles[[#This Row],[Code GL]],Autres[Date de la demande du chèque],\">=\"&DATEVALUE(\" 1 \"&RécapitulatifDépensesMensuelles[[#Headers],[Janvier]]&_ANNÉE),Autres[Date de la demande du chèque],\"<=\"&D$4)","v":{"v":0,"d":"0.00 $"}},{"$f":"SUMIFS(DépensesDétaillées[Vérifiez la quantité],DépensesDétaillées[Code GL],RécapitulatifDépensesMensuelles[[#This Row],[Code GL]],DépensesDétaillées[Date de facturation ],\">=\"&E$3,DépensesDétaillées[Date de facturation ],\"<=\"&E$4)+SUMIFS(Autres[Vérifiez la quantité],Autres[Code GL],RécapitulatifDépensesMensuelles[[#This Row],[Code GL]],Autres[Date de la demande du chèque],\">=\"&DATEVALUE(\" 1 \"&RécapitulatifDépensesMensuelles[[#Headers],[Février]]&_ANNÉE),Autres[Date de la demande du chèque],\"<=\"&E$4)","v":{"v":0,"d":"0.00 $"}},{"$f":"SUMIFS(DépensesDétaillées[Vérifiez la quantité],DépensesDétaillées[Code GL],RécapitulatifDépensesMensuelles[[#This Row],[Code GL]],DépensesDétaillées[Date de facturation ],\">=\"&F$3,DépensesDétaillées[Date de facturation ],\"<=\"&F$4)+SUMIFS(Autres[Vérifiez la quantité],Autres[Code GL],RécapitulatifDépensesMensuelles[[#This Row],[Code GL]],Autres[Date de la demande du chèque],\">=\"&DATEVALUE(\" 1 \"&RécapitulatifDépensesMensuelles[[#Headers],[Mars]]&_ANNÉE),Autres[Date de la demande du chèque],\"<=\"&F$4)","v":{"v":0,"d":"0.00 $"}},{"$f":"SUMIFS(DépensesDétaillées[Vérifiez la quantité],DépensesDétaillées[Code GL],RécapitulatifDépensesMensuelles[[#This Row],[Code GL]],DépensesDétaillées[Date de facturation ],\">=\"&G$3,DépensesDétaillées[Date de facturation ],\"<=\"&G$4)+SUMIFS(Autres[Vérifiez la quantité],Autres[Code GL],RécapitulatifDépensesMensuelles[[#This Row],[Code GL]],Autres[Date de la demande du chèque],\">=\"&DATEVALUE(\" 1 \"&RécapitulatifDépensesMensuelles[[#Headers],[Avril]]&_ANNÉE),Autres[Date de la demande du chèque],\"<=\"&G$4)","v":{"v":0,"d":"0.00 $"}},{"$f":"SUMIFS(DépensesDétaillées[Vérifiez la quantité],DépensesDétaillées[Code GL],RécapitulatifDépensesMensuelles[[#This Row],[Code GL]],DépensesDétaillées[Date de facturation ],\">=\"&H$3,DépensesDétaillées[Date de facturation ],\"<=\"&H$4)+SUMIFS(Autres[Vérifiez la quantité],Autres[Code GL],RécapitulatifDépensesMensuelles[[#This Row],[Code GL]],Autres[Date de la demande du chèque],\">=\"&DATEVALUE(\" 1 \"&RécapitulatifDépensesMensuelles[[#Headers],[Mai]]&_ANNÉE),Autres[Date de la demande du chèque],\"<=\"&H$4)","v":{"v":0,"d":"0.00 $"}},{"$f":"SUMIFS(DépensesDétaillées[Vérifiez la quantité],DépensesDétaillées[Code GL],RécapitulatifDépensesMensuelles[[#This Row],[Code GL]],DépensesDétaillées[Date de facturation ],\">=\"&I$3,DépensesDétaillées[Date de facturation ],\"<=\"&I$4)+SUMIFS(Autres[Vérifiez la quantité],Autres[Code GL],RécapitulatifDépensesMensuelles[[#This Row],[Code GL]],Autres[Date de la demande du chèque],\">=\"&DATEVALUE(\" 1 \"&RécapitulatifDépensesMensuelles[[#Headers],[Juin]]&_ANNÉE),Autres[Date de la demande du chèque],\"<=\"&I$4)","v":{"v":0,"d":"0.00 $"}},{"$f":"SUMIFS(DépensesDétaillées[Vérifiez la quantité],DépensesDétaillées[Code GL],RécapitulatifDépensesMensuelles[[#This Row],[Code GL]],DépensesDétaillées[Date de facturation ],\">=\"&J$3,DépensesDétaillées[Date de facturation ],\"<=\"&J$4)+SUMIFS(Autres[Vérifiez la quantité],Autres[Code GL],RécapitulatifDépensesMensuelles[[#This Row],[Code GL]],Autres[Date de la demande du chèque],\">=\"&DATEVALUE(\" 1 \"&RécapitulatifDépensesMensuelles[[#Headers],[Juillet]]&_ANNÉE),Autres[Date de la demande du chèque],\"<=\"&J$4)","v":{"v":0,"d":"0.00 $"}},{"$f":"SUMIFS(DépensesDétaillées[Vérifiez la quantité],DépensesDétaillées[Code GL],RécapitulatifDépensesMensuelles[[#This Row],[Code GL]],DépensesDétaillées[Date de facturation ],\">=\"&K$3,DépensesDétaillées[Date de facturation ],\"<=\"&K$4)+SUMIFS(Autres[Vérifiez la quantité],Autres[Code GL],RécapitulatifDépensesMensuelles[[#This Row],[Code GL]],Autres[Date de la demande du chèque],\">=\"&DATEVALUE(\" 1 \"&RécapitulatifDépensesMensuelles[[#Headers],[Août]]&_ANNÉE),Autres[Date de la demande du chèque],\"<=\"&K$4)","v":{"v":0,"d":"0.00 $"}},{"$f":"SUMIFS(DépensesDétaillées[Vérifiez la quantité],DépensesDétaillées[Code GL],RécapitulatifDépensesMensuelles[[#This Row],[Code GL]],DépensesDétaillées[Date de facturation ],\">=\"&L$3,DépensesDétaillées[Date de facturation ],\"<=\"&L$4)+SUMIFS(Autres[Vérifiez la quantité],Autres[Code GL],RécapitulatifDépensesMensuelles[[#This Row],[Code GL]],Autres[Date de la demande du chèque],\">=\"&DATEVALUE(\" 1 \"&RécapitulatifDépensesMensuelles[[#Headers],[Septembre]]&_ANNÉE),Autres[Date de la demande du chèque],\"<=\"&L$4)","v":{"v":0,"d":"0.00 $"}},{"$f":"SUMIFS(DépensesDétaillées[Vérifiez la quantité],DépensesDétaillées[Code GL],RécapitulatifDépensesMensuelles[[#This Row],[Code GL]],DépensesDétaillées[Date de facturation ],\">=\"&M$3,DépensesDétaillées[Date de facturation ],\"<=\"&M$4)+SUMIFS(Autres[Vérifiez la quantité],Autres[Code GL],RécapitulatifDépensesMensuelles[[#This Row],[Code GL]],Autres[Date de la demande du chèque],\">=\"&DATEVALUE(\" 1 \"&RécapitulatifDépensesMensuelles[[#Headers],[Octobre]]&_ANNÉE),Autres[Date de la demande du chèque],\"<=\"&M$4)","v":{"v":0,"d":"0.00 $"}},{"$f":"SUMIFS(DépensesDétaillées[Vérifiez la quantité],DépensesDétaillées[Code GL],RécapitulatifDépensesMensuelles[[#This Row],[Code GL]],DépensesDétaillées[Date de facturation ],\">=\"&N$3,DépensesDétaillées[Date de facturation ],\"<=\"&N$4)+SUMIFS(Autres[Vérifiez la quantité],Autres[Code GL],RécapitulatifDépensesMensuelles[[#This Row],[Code GL]],Autres[Date de la demande du chèque],\">=\"&DATEVALUE(\" 1 \"&RécapitulatifDépensesMensuelles[[#Headers],[Novembre]]&_ANNÉE),Autres[Date de la demande du chèque],\"<=\"&N$4)","v":{"v":0,"d":"0.00 $"}},{"$f":"SUMIFS(DépensesDétaillées[Vérifiez la quantité],DépensesDétaillées[Code GL],RécapitulatifDépensesMensuelles[[#This Row],[Code GL]],DépensesDétaillées[Date de facturation ],\">=\"&O$3,DépensesDétaillées[Date de facturation ],\"<=\"&O$4)+SUMIFS(Autres[Vérifiez la quantité],Autres[Code GL],RécapitulatifDépensesMensuelles[[#This Row],[Code GL]],Autres[Date de la demande du chèque],\">=\"&DATEVALUE(\" 1 \"&RécapitulatifDépensesMensuelles[[#Headers],[Décembre]]&_ANNÉE),Autres[Date de la demande du chèque],\"<=\"&O$4)","v":{"v":0,"d":"0.00 $"}},{"$f":"SUM(RécapitulatifDépensesMensuelles[[#This Row],[Janvier]:[Décembre]])","v":{"v":0,"d":"0.00 $"}}]
[null,10000,"Marketing",{"$f":"SUMIFS(DépensesDétaillées[Vérifiez la quantité],DépensesDétaillées[Code GL],RécapitulatifDépensesMensuelles[[#This Row],[Code GL]],DépensesDétaillées[Date de facturation ],\">=\"&D$3,DépensesDétaillées[Date de facturation ],\"<=\"&D$4)+SUMIFS(Autres[Vérifiez la quantité],Autres[Code GL],RécapitulatifDépensesMensuelles[[#This Row],[Code GL]],Autres[Date de la demande du chèque],\">=\"&DATEVALUE(\" 1 \"&RécapitulatifDépensesMensuelles[[#Headers],[Janvier]]&_ANNÉE),Autres[Date de la demande du chèque],\"<=\"&D$4)","v":{"v":0,"d":"0.00 $"}},{"$f":"SUMIFS(DépensesDétaillées[Vérifiez la quantité],DépensesDétaillées[Code GL],RécapitulatifDépensesMensuelles[[#This Row],[Code GL]],DépensesDétaillées[Date de facturation ],\">=\"&E$3,DépensesDétaillées[Date de facturation ],\"<=\"&E$4)+SUMIFS(Autres[Vérifiez la quantité],Autres[Code GL],RécapitulatifDépensesMensuelles[[#This Row],[Code GL]],Autres[Date de la demande du chèque],\">=\"&DATEVALUE(\" 1 \"&RécapitulatifDépensesMensuelles[[#Headers],[Février]]&_ANNÉE),Autres[Date de la demande du chèque],\"<=\"&E$4)","v":{"v":0,"d":"0.00 $"}},{"$f":"SUMIFS(DépensesDétaillées[Vérifiez la quantité],DépensesDétaillées[Code GL],RécapitulatifDépensesMensuelles[[#This Row],[Code GL]],DépensesDétaillées[Date de facturation ],\">=\"&F$3,DépensesDétaillées[Date de facturation ],\"<=\"&F$4)+SUMIFS(Autres[Vérifiez la quantité],Autres[Code GL],RécapitulatifDépensesMensuelles[[#This Row],[Code GL]],Autres[Date de la demande du chèque],\">=\"&DATEVALUE(\" 1 \"&RécapitulatifDépensesMensuelles[[#Headers],[Mars]]&_ANNÉE),Autres[Date de la demande du chèque],\"<=\"&F$4)","v":{"v":0,"d":"0.00 $"}},{"$f":"SUMIFS(DépensesDétaillées[Vérifiez la quantité],DépensesDétaillées[Code GL],RécapitulatifDépensesMensuelles[[#This Row],[Code GL]],DépensesDétaillées[Date de facturation ],\">=\"&G$3,DépensesDétaillées[Date de facturation ],\"<=\"&G$4)+SUMIFS(Autres[Vérifiez la quantité],Autres[Code GL],RécapitulatifDépensesMensuelles[[#This Row],[Code GL]],Autres[Date de la demande du chèque],\">=\"&DATEVALUE(\" 1 \"&RécapitulatifDépensesMensuelles[[#Headers],[Avril]]&_ANNÉE),Autres[Date de la demande du chèque],\"<=\"&G$4)","v":{"v":0,"d":"0.00 $"}},{"$f":"SUMIFS(DépensesDétaillées[Vérifiez la quantité],DépensesDétaillées[Code GL],RécapitulatifDépensesMensuelles[[#This Row],[Code GL]],DépensesDétaillées[Date de facturation ],\">=\"&H$3,DépensesDétaillées[Date de facturation ],\"<=\"&H$4)+SUMIFS(Autres[Vérifiez la quantité],Autres[Code GL],RécapitulatifDépensesMensuelles[[#This Row],[Code GL]],Autres[Date de la demande du chèque],\">=\"&DATEVALUE(\" 1 \"&RécapitulatifDépensesMensuelles[[#Headers],[Mai]]&_ANNÉE),Autres[Date de la demande du chèque],\"<=\"&H$4)","v":{"v":0,"d":"0.00 $"}},{"$f":"SUMIFS(DépensesDétaillées[Vérifiez la quantité],DépensesDétaillées[Code GL],RécapitulatifDépensesMensuelles[[#This Row],[Code GL]],DépensesDétaillées[Date de facturation ],\">=\"&I$3,DépensesDétaillées[Date de facturation ],\"<=\"&I$4)+SUMIFS(Autres[Vérifiez la quantité],Autres[Code GL],RécapitulatifDépensesMensuelles[[#This Row],[Code GL]],Autres[Date de la demande du chèque],\">=\"&DATEVALUE(\" 1 \"&RécapitulatifDépensesMensuelles[[#Headers],[Juin]]&_ANNÉE),Autres[Date de la demande du chèque],\"<=\"&I$4)","v":{"v":0,"d":"0.00 $"}},{"$f":"SUMIFS(DépensesDétaillées[Vérifiez la quantité],DépensesDétaillées[Code GL],RécapitulatifDépensesMensuelles[[#This Row],[Code GL]],DépensesDétaillées[Date de facturation ],\">=\"&J$3,DépensesDétaillées[Date de facturation ],\"<=\"&J$4)+SUMIFS(Autres[Vérifiez la quantité],Autres[Code GL],RécapitulatifDépensesMensuelles[[#This Row],[Code GL]],Autres[Date de la demande du chèque],\">=\"&DATEVALUE(\" 1 \"&RécapitulatifDépensesMensuelles[[#Headers],[Juillet]]&_ANNÉE),Autres[Date de la demande du chèque],\"<=\"&J$4)","v":{"v":0,"d":"0.00 $"}},{"$f":"SUMIFS(DépensesDétaillées[Vérifiez la quantité],DépensesDétaillées[Code GL],RécapitulatifDépensesMensuelles[[#This Row],[Code GL]],DépensesDétaillées[Date de facturation ],\">=\"&K$3,DépensesDétaillées[Date de facturation ],\"<=\"&K$4)+SUMIFS(Autres[Vérifiez la quantité],Autres[Code GL],RécapitulatifDépensesMensuelles[[#This Row],[Code GL]],Autres[Date de la demande du chèque],\">=\"&DATEVALUE(\" 1 \"&RécapitulatifDépensesMensuelles[[#Headers],[Août]]&_ANNÉE),Autres[Date de la demande du chèque],\"<=\"&K$4)","v":{"v":0,"d":"0.00 $"}},{"$f":"SUMIFS(DépensesDétaillées[Vérifiez la quantité],DépensesDétaillées[Code GL],RécapitulatifDépensesMensuelles[[#This Row],[Code GL]],DépensesDétaillées[Date de facturation ],\">=\"&L$3,DépensesDétaillées[Date de facturation ],\"<=\"&L$4)+SUMIFS(Autres[Vérifiez la quantité],Autres[Code GL],RécapitulatifDépensesMensuelles[[#This Row],[Code GL]],Autres[Date de la demande du chèque],\">=\"&DATEVALUE(\" 1 \"&RécapitulatifDépensesMensuelles[[#Headers],[Septembre]]&_ANNÉE),Autres[Date de la demande du chèque],\"<=\"&L$4)","v":{"v":0,"d":"0.00 $"}},{"$f":"SUMIFS(DépensesDétaillées[Vérifiez la quantité],DépensesDétaillées[Code GL],RécapitulatifDépensesMensuelles[[#This Row],[Code GL]],DépensesDétaillées[Date de facturation ],\">=\"&M$3,DépensesDétaillées[Date de facturation ],\"<=\"&M$4)+SUMIFS(Autres[Vérifiez la quantité],Autres[Code GL],RécapitulatifDépensesMensuelles[[#This Row],[Code GL]],Autres[Date de la demande du chèque],\">=\"&DATEVALUE(\" 1 \"&RécapitulatifDépensesMensuelles[[#Headers],[Octobre]]&_ANNÉE),Autres[Date de la demande du chèque],\"<=\"&M$4)","v":{"v":0,"d":"0.00 $"}},{"$f":"SUMIFS(DépensesDétaillées[Vérifiez la quantité],DépensesDétaillées[Code GL],RécapitulatifDépensesMensuelles[[#This Row],[Code GL]],DépensesDétaillées[Date de facturation ],\">=\"&N$3,DépensesDétaillées[Date de facturation ],\"<=\"&N$4)+SUMIFS(Autres[Vérifiez la quantité],Autres[Code GL],RécapitulatifDépensesMensuelles[[#This Row],[Code GL]],Autres[Date de la demande du chèque],\">=\"&DATEVALUE(\" 1 \"&RécapitulatifDépensesMensuelles[[#Headers],[Novembre]]&_ANNÉE),Autres[Date de la demande du chèque],\"<=\"&N$4)","v":{"v":0,"d":"0.00 $"}},{"$f":"SUMIFS(DépensesDétaillées[Vérifiez la quantité],DépensesDétaillées[Code GL],RécapitulatifDépensesMensuelles[[#This Row],[Code GL]],DépensesDétaillées[Date de facturation ],\">=\"&O$3,DépensesDétaillées[Date de facturation ],\"<=\"&O$4)+SUMIFS(Autres[Vérifiez la quantité],Autres[Code GL],RécapitulatifDépensesMensuelles[[#This Row],[Code GL]],Autres[Date de la demande du chèque],\">=\"&DATEVALUE(\" 1 \"&RécapitulatifDépensesMensuelles[[#Headers],[Décembre]]&_ANNÉE),Autres[Date de la demande du chèque],\"<=\"&O$4)","v":{"v":0,"d":"0.00 $"}},{"$f":"SUM(RécapitulatifDépensesMensuelles[[#This Row],[Janvier]:[Décembre]])","v":{"v":0,"d":"0.00 $"}}]
[null,11000,"Dons caritatifs",{"$f":"SUMIFS(DépensesDétaillées[Vérifiez la quantité],DépensesDétaillées[Code GL],RécapitulatifDépensesMensuelles[[#This Row],[Code GL]],DépensesDétaillées[Date de facturation ],\">=\"&D$3,DépensesDétaillées[Date de facturation ],\"<=\"&D$4)+SUMIFS(Autres[Vérifiez la quantité],Autres[Code GL],RécapitulatifDépensesMensuelles[[#This Row],[Code GL]],Autres[Date de la demande du chèque],\">=\"&DATEVALUE(\" 1 \"&RécapitulatifDépensesMensuelles[[#Headers],[Janvier]]&_ANNÉE),Autres[Date de la demande du chèque],\"<=\"&D$4)","v":{"v":0,"d":"0.00 $"}},{"$f":"SUMIFS(DépensesDétaillées[Vérifiez la quantité],DépensesDétaillées[Code GL],RécapitulatifDépensesMensuelles[[#This Row],[Code GL]],DépensesDétaillées[Date de facturation ],\">=\"&E$3,DépensesDétaillées[Date de facturation ],\"<=\"&E$4)+SUMIFS(Autres[Vérifiez la quantité],Autres[Code GL],RécapitulatifDépensesMensuelles[[#This Row],[Code GL]],Autres[Date de la demande du chèque],\">=\"&DATEVALUE(\" 1 \"&RécapitulatifDépensesMensuelles[[#Headers],[Février]]&_ANNÉE),Autres[Date de la demande du chèque],\"<=\"&E$4)","v":{"v":0,"d":"0.00 $"}},{"$f":"SUMIFS(DépensesDétaillées[Vérifiez la quantité],DépensesDétaillées[Code GL],RécapitulatifDépensesMensuelles[[#This Row],[Code GL]],DépensesDétaillées[Date de facturation ],\">=\"&F$3,DépensesDétaillées[Date de facturation ],\"<=\"&F$4)+SUMIFS(Autres[Vérifiez la quantité],Autres[Code GL],RécapitulatifDépensesMensuelles[[#This Row],[Code GL]],Autres[Date de la demande du chèque],\">=\"&DATEVALUE(\" 1 \"&RécapitulatifDépensesMensuelles[[#Headers],[Mars]]&_ANNÉE),Autres[Date de la demande du chèque],\"<=\"&F$4)","v":{"v":0,"d":"0.00 $"}},{"$f":"SUMIFS(DépensesDétaillées[Vérifiez la quantité],DépensesDétaillées[Code GL],RécapitulatifDépensesMensuelles[[#This Row],[Code GL]],DépensesDétaillées[Date de facturation ],\">=\"&G$3,DépensesDétaillées[Date de facturation ],\"<=\"&G$4)+SUMIFS(Autres[Vérifiez la quantité],Autres[Code GL],RécapitulatifDépensesMensuelles[[#This Row],[Code GL]],Autres[Date de la demande du chèque],\">=\"&DATEVALUE(\" 1 \"&RécapitulatifDépensesMensuelles[[#Headers],[Avril]]&_ANNÉE),Autres[Date de la demande du chèque],\"<=\"&G$4)","v":{"v":0,"d":"0.00 $"}},{"$f":"SUMIFS(DépensesDétaillées[Vérifiez la quantité],DépensesDétaillées[Code GL],RécapitulatifDépensesMensuelles[[#This Row],[Code GL]],DépensesDétaillées[Date de facturation ],\">=\"&H$3,DépensesDétaillées[Date de facturation ],\"<=\"&H$4)+SUMIFS(Autres[Vérifiez la quantité],Autres[Code GL],RécapitulatifDépensesMensuelles[[#This Row],[Code GL]],Autres[Date de la demande du chèque],\">=\"&DATEVALUE(\" 1 \"&RécapitulatifDépensesMensuelles[[#Headers],[Mai]]&_ANNÉE),Autres[Date de la demande du chèque],\"<=\"&H$4)","v":{"v":0,"d":"0.00 $"}},{"$f":"SUMIFS(DépensesDétaillées[Vérifiez la quantité],DépensesDétaillées[Code GL],RécapitulatifDépensesMensuelles[[#This Row],[Code GL]],DépensesDétaillées[Date de facturation ],\">=\"&I$3,DépensesDétaillées[Date de facturation ],\"<=\"&I$4)+SUMIFS(Autres[Vérifiez la quantité],Autres[Code GL],RécapitulatifDépensesMensuelles[[#This Row],[Code GL]],Autres[Date de la demande du chèque],\">=\"&DATEVALUE(\" 1 \"&RécapitulatifDépensesMensuelles[[#Headers],[Juin]]&_ANNÉE),Autres[Date de la demande du chèque],\"<=\"&I$4)","v":{"v":0,"d":"0.00 $"}},{"$f":"SUMIFS(DépensesDétaillées[Vérifiez la quantité],DépensesDétaillées[Code GL],RécapitulatifDépensesMensuelles[[#This Row],[Code GL]],DépensesDétaillées[Date de facturation ],\">=\"&J$3,DépensesDétaillées[Date de facturation ],\"<=\"&J$4)+SUMIFS(Autres[Vérifiez la quantité],Autres[Code GL],RécapitulatifDépensesMensuelles[[#This Row],[Code GL]],Autres[Date de la demande du chèque],\">=\"&DATEVALUE(\" 1 \"&RécapitulatifDépensesMensuelles[[#Headers],[Juillet]]&_ANNÉE),Autres[Date de la demande du chèque],\"<=\"&J$4)","v":{"v":0,"d":"0.00 $"}},{"$f":"SUMIFS(DépensesDétaillées[Vérifiez la quantité],DépensesDétaillées[Code GL],RécapitulatifDépensesMensuelles[[#This Row],[Code GL]],DépensesDétaillées[Date de facturation ],\">=\"&K$3,DépensesDétaillées[Date de facturation ],\"<=\"&K$4)+SUMIFS(Autres[Vérifiez la quantité],Autres[Code GL],RécapitulatifDépensesMensuelles[[#This Row],[Code GL]],Autres[Date de la demande du chèque],\">=\"&DATEVALUE(\" 1 \"&RécapitulatifDépensesMensuelles[[#Headers],[Août]]&_ANNÉE),Autres[Date de la demande du chèque],\"<=\"&K$4)","v":{"v":0,"d":"0.00 $"}},{"$f":"SUMIFS(DépensesDétaillées[Vérifiez la quantité],DépensesDétaillées[Code GL],RécapitulatifDépensesMensuelles[[#This Row],[Code GL]],DépensesDétaillées[Date de facturation ],\">=\"&L$3,DépensesDétaillées[Date de facturation ],\"<=\"&L$4)+SUMIFS(Autres[Vérifiez la quantité],Autres[Code GL],RécapitulatifDépensesMensuelles[[#This Row],[Code GL]],Autres[Date de la demande du chèque],\">=\"&DATEVALUE(\" 1 \"&RécapitulatifDépensesMensuelles[[#Headers],[Septembre]]&_ANNÉE),Autres[Date de la demande du chèque],\"<=\"&L$4)","v":{"v":0,"d":"0.00 $"}},{"$f":"SUMIFS(DépensesDétaillées[Vérifiez la quantité],DépensesDétaillées[Code GL],RécapitulatifDépensesMensuelles[[#This Row],[Code GL]],DépensesDétaillées[Date de facturation ],\">=\"&M$3,DépensesDétaillées[Date de facturation ],\"<=\"&M$4)+SUMIFS(Autres[Vérifiez la quantité],Autres[Code GL],RécapitulatifDépensesMensuelles[[#This Row],[Code GL]],Autres[Date de la demande du chèque],\">=\"&DATEVALUE(\" 1 \"&RécapitulatifDépensesMensuelles[[#Headers],[Octobre]]&_ANNÉE),Autres[Date de la demande du chèque],\"<=\"&M$4)","v":{"v":0,"d":"0.00 $"}},{"$f":"SUMIFS(DépensesDétaillées[Vérifiez la quantité],DépensesDétaillées[Code GL],RécapitulatifDépensesMensuelles[[#This Row],[Code GL]],DépensesDétaillées[Date de facturation ],\">=\"&N$3,DépensesDétaillées[Date de facturation ],\"<=\"&N$4)+SUMIFS(Autres[Vérifiez la quantité],Autres[Code GL],RécapitulatifDépensesMensuelles[[#This Row],[Code GL]],Autres[Date de la demande du chèque],\">=\"&DATEVALUE(\" 1 \"&RécapitulatifDépensesMensuelles[[#Headers],[Novembre]]&_ANNÉE),Autres[Date de la demande du chèque],\"<=\"&N$4)","v":{"v":0,"d":"0.00 $"}},{"$f":"SUMIFS(DépensesDétaillées[Vérifiez la quantité],DépensesDétaillées[Code GL],RécapitulatifDépensesMensuelles[[#This Row],[Code GL]],DépensesDétaillées[Date de facturation ],\">=\"&O$3,DépensesDétaillées[Date de facturation ],\"<=\"&O$4)+SUMIFS(Autres[Vérifiez la quantité],Autres[Code GL],RécapitulatifDépensesMensuelles[[#This Row],[Code GL]],Autres[Date de la demande du chèque],\">=\"&DATEVALUE(\" 1 \"&RécapitulatifDépensesMensuelles[[#Headers],[Décembre]]&_ANNÉE),Autres[Date de la demande du chèque],\"<=\"&O$4)","v":{"v":0,"d":"0.00 $"}},{"$f":"SUM(RécapitulatifDépensesMensuelles[[#This Row],[Janvier]:[Décembre]])","v":{"v":0,"d":"0.00 $"}}]
[null,12000,"Parrainages",{"$f":"SUMIFS(DépensesDétaillées[Vérifiez la quantité],DépensesDétaillées[Code GL],RécapitulatifDépensesMensuelles[[#This Row],[Code GL]],DépensesDétaillées[Date de facturation ],\">=\"&D$3,DépensesDétaillées[Date de facturation ],\"<=\"&D$4)+SUMIFS(Autres[Vérifiez la quantité],Autres[Code GL],RécapitulatifDépensesMensuelles[[#This Row],[Code GL]],Autres[Date de la demande du chèque],\">=\"&DATEVALUE(\" 1 \"&RécapitulatifDépensesMensuelles[[#Headers],[Janvier]]&_ANNÉE),Autres[Date de la demande du chèque],\"<=\"&D$4)","v":{"v":0,"d":"0.00 $"}},{"$f":"SUMIFS(DépensesDétaillées[Vérifiez la quantité],DépensesDétaillées[Code GL],RécapitulatifDépensesMensuelles[[#This Row],[Code GL]],DépensesDétaillées[Date de facturation ],\">=\"&E$3,DépensesDétaillées[Date de facturation ],\"<=\"&E$4)+SUMIFS(Autres[Vérifiez la quantité],Autres[Code GL],RécapitulatifDépensesMensuelles[[#This Row],[Code GL]],Autres[Date de la demande du chèque],\">=\"&DATEVALUE(\" 1 \"&RécapitulatifDépensesMensuelles[[#Headers],[Février]]&_ANNÉE),Autres[Date de la demande du chèque],\"<=\"&E$4)","v":{"v":0,"d":"0.00 $"}},{"$f":"SUMIFS(DépensesDétaillées[Vérifiez la quantité],DépensesDétaillées[Code GL],RécapitulatifDépensesMensuelles[[#This Row],[Code GL]],DépensesDétaillées[Date de facturation ],\">=\"&F$3,DépensesDétaillées[Date de facturation ],\"<=\"&F$4)+SUMIFS(Autres[Vérifiez la quantité],Autres[Code GL],RécapitulatifDépensesMensuelles[[#This Row],[Code GL]],Autres[Date de la demande du chèque],\">=\"&DATEVALUE(\" 1 \"&RécapitulatifDépensesMensuelles[[#Headers],[Mars]]&_ANNÉE),Autres[Date de la demande du chèque],\"<=\"&F$4)","v":{"v":0,"d":"0.00 $"}},{"$f":"SUMIFS(DépensesDétaillées[Vérifiez la quantité],DépensesDétaillées[Code GL],RécapitulatifDépensesMensuelles[[#This Row],[Code GL]],DépensesDétaillées[Date de facturation ],\">=\"&G$3,DépensesDétaillées[Date de facturation ],\"<=\"&G$4)+SUMIFS(Autres[Vérifiez la quantité],Autres[Code GL],RécapitulatifDépensesMensuelles[[#This Row],[Code GL]],Autres[Date de la demande du chèque],\">=\"&DATEVALUE(\" 1 \"&RécapitulatifDépensesMensuelles[[#Headers],[Avril]]&_ANNÉE),Autres[Date de la demande du chèque],\"<=\"&G$4)","v":{"v":0,"d":"0.00 $"}},{"$f":"SUMIFS(DépensesDétaillées[Vérifiez la quantité],DépensesDétaillées[Code GL],RécapitulatifDépensesMensuelles[[#This Row],[Code GL]],DépensesDétaillées[Date de facturation ],\">=\"&H$3,DépensesDétaillées[Date de facturation ],\"<=\"&H$4)+SUMIFS(Autres[Vérifiez la quantité],Autres[Code GL],RécapitulatifDépensesMensuelles[[#This Row],[Code GL]],Autres[Date de la demande du chèque],\">=\"&DATEVALUE(\" 1 \"&RécapitulatifDépensesMensuelles[[#Headers],[Mai]]&_ANNÉE),Autres[Date de la demande du chèque],\"<=\"&H$4)","v":{"v":0,"d":"0.00 $"}},{"$f":"SUMIFS(DépensesDétaillées[Vérifiez la quantité],DépensesDétaillées[Code GL],RécapitulatifDépensesMensuelles[[#This Row],[Code GL]],DépensesDétaillées[Date de facturation ],\">=\"&I$3,DépensesDétaillées[Date de facturation ],\"<=\"&I$4)+SUMIFS(Autres[Vérifiez la quantité],Autres[Code GL],RécapitulatifDépensesMensuelles[[#This Row],[Code GL]],Autres[Date de la demande du chèque],\">=\"&DATEVALUE(\" 1 \"&RécapitulatifDépensesMensuelles[[#Headers],[Juin]]&_ANNÉE),Autres[Date de la demande du chèque],\"<=\"&I$4)","v":{"v":0,"d":"0.00 $"}},{"$f":"SUMIFS(DépensesDétaillées[Vérifiez la quantité],DépensesDétaillées[Code GL],RécapitulatifDépensesMensuelles[[#This Row],[Code GL]],DépensesDétaillées[Date de facturation ],\">=\"&J$3,DépensesDétaillées[Date de facturation ],\"<=\"&J$4)+SUMIFS(Autres[Vérifiez la quantité],Autres[Code GL],RécapitulatifDépensesMensuelles[[#This Row],[Code GL]],Autres[Date de la demande du chèque],\">=\"&DATEVALUE(\" 1 \"&RécapitulatifDépensesMensuelles[[#Headers],[Juillet]]&_ANNÉE),Autres[Date de la demande du chèque],\"<=\"&J$4)","v":{"v":0,"d":"0.00 $"}},{"$f":"SUMIFS(DépensesDétaillées[Vérifiez la quantité],DépensesDétaillées[Code GL],RécapitulatifDépensesMensuelles[[#This Row],[Code GL]],DépensesDétaillées[Date de facturation ],\">=\"&K$3,DépensesDétaillées[Date de facturation ],\"<=\"&K$4)+SUMIFS(Autres[Vérifiez la quantité],Autres[Code GL],RécapitulatifDépensesMensuelles[[#This Row],[Code GL]],Autres[Date de la demande du chèque],\">=\"&DATEVALUE(\" 1 \"&RécapitulatifDépensesMensuelles[[#Headers],[Août]]&_ANNÉE),Autres[Date de la demande du chèque],\"<=\"&K$4)","v":{"v":0,"d":"0.00 $"}},{"$f":"SUMIFS(DépensesDétaillées[Vérifiez la quantité],DépensesDétaillées[Code GL],RécapitulatifDépensesMensuelles[[#This Row],[Code GL]],DépensesDétaillées[Date de facturation ],\">=\"&L$3,DépensesDétaillées[Date de facturation ],\"<=\"&L$4)+SUMIFS(Autres[Vérifiez la quantité],Autres[Code GL],RécapitulatifDépensesMensuelles[[#This Row],[Code GL]],Autres[Date de la demande du chèque],\">=\"&DATEVALUE(\" 1 \"&RécapitulatifDépensesMensuelles[[#Headers],[Septembre]]&_ANNÉE),Autres[Date de la demande du chèque],\"<=\"&L$4)","v":{"v":0,"d":"0.00 $"}},{"$f":"SUMIFS(DépensesDétaillées[Vérifiez la quantité],DépensesDétaillées[Code GL],RécapitulatifDépensesMensuelles[[#This Row],[Code GL]],DépensesDétaillées[Date de facturation ],\">=\"&M$3,DépensesDétaillées[Date de facturation ],\"<=\"&M$4)+SUMIFS(Autres[Vérifiez la quantité],Autres[Code GL],RécapitulatifDépensesMensuelles[[#This Row],[Code GL]],Autres[Date de la demande du chèque],\">=\"&DATEVALUE(\" 1 \"&RécapitulatifDépensesMensuelles[[#Headers],[Octobre]]&_ANNÉE),Autres[Date de la demande du chèque],\"<=\"&M$4)","v":{"v":0,"d":"0.00 $"}},{"$f":"SUMIFS(DépensesDétaillées[Vérifiez la quantité],DépensesDétaillées[Code GL],RécapitulatifDépensesMensuelles[[#This Row],[Code GL]],DépensesDétaillées[Date de facturation ],\">=\"&N$3,DépensesDétaillées[Date de facturation ],\"<=\"&N$4)+SUMIFS(Autres[Vérifiez la quantité],Autres[Code GL],RécapitulatifDépensesMensuelles[[#This Row],[Code GL]],Autres[Date de la demande du chèque],\">=\"&DATEVALUE(\" 1 \"&RécapitulatifDépensesMensuelles[[#Headers],[Novembre]]&_ANNÉE),Autres[Date de la demande du chèque],\"<=\"&N$4)","v":{"v":0,"d":"0.00 $"}},{"$f":"SUMIFS(DépensesDétaillées[Vérifiez la quantité],DépensesDétaillées[Code GL],RécapitulatifDépensesMensuelles[[#This Row],[Code GL]],DépensesDétaillées[Date de facturation ],\">=\"&O$3,DépensesDétaillées[Date de facturation ],\"<=\"&O$4)+SUMIFS(Autres[Vérifiez la quantité],Autres[Code GL],RécapitulatifDépensesMensuelles[[#This Row],[Code GL]],Autres[Date de la demande du chèque],\">=\"&DATEVALUE(\" 1 \"&RécapitulatifDépensesMensuelles[[#Headers],[Décembre]]&_ANNÉE),Autres[Date de la demande du chèque],\"<=\"&O$4)","v":{"v":0,"d":"0.00 $"}},{"$f":"SUM(RécapitulatifDépensesMensuelles[[#This Row],[Janvier]:[Décembre]])","v":{"v":0,"d":"0.00 $"}}]
[null,"Total",null,{"$f":"SUBTOTAL(109,RécapitulatifDépensesMensuelles[Janvier])","v":{"v":0,"d":"0.00 $"}},{"$f":"SUBTOTAL(109,RécapitulatifDépensesMensuelles[Février])","v":{"v":0,"d":"0.00 $"}},{"$f":"SUBTOTAL(109,RécapitulatifDépensesMensuelles[Mars])","v":{"v":0,"d":"0.00 $"}},{"$f":"SUBTOTAL(109,RécapitulatifDépensesMensuelles[Avril])","v":{"v":0,"d":"0.00 $"}},{"$f":"SUBTOTAL(109,RécapitulatifDépensesMensuelles[Mai])","v":{"v":0,"d":"0.00 $"}},{"$f":"SUBTOTAL(109,RécapitulatifDépensesMensuelles[Juin])","v":{"v":0,"d":"0.00 $"}},{"$f":"SUBTOTAL(109,RécapitulatifDépensesMensuelles[Juillet])","v":{"v":0,"d":"0.00 $"}},{"$f":"SUBTOTAL(109,RécapitulatifDépensesMensuelles[Août])","v":{"v":0,"d":"0.00 $"}},{"$f":"SUBTOTAL(109,RécapitulatifDépensesMensuelles[Septembre])","v":{"v":0,"d":"0.00 $"}},{"$f":"SUBTOTAL(109,RécapitulatifDépensesMensuelles[Octobre])","v":{"v":0,"d":"0.00 $"}},{"$f":"SUBTOTAL(109,RécapitulatifDépensesMensuelles[Novembre])","v":{"v":0,"d":"0.00 $"}},{"$f":"SUBTOTAL(109,RécapitulatifDépensesMensuelles[Décembre])","v":{"v":0,"d":"0.00 $"}},{"$f":"SUBTOTAL(109,RécapitulatifDépensesMensuelles[Total])","v":{"v":0,"d":"0.00 $"}}]

{"sheet":"DÉPENSES DÉTAILLÉES","index":2,"n_rows":6,"n_cols":10,"rows_kept":6,"merged":[[1,1,1,9],[2,1,2,5],[2,6,2,9]]}
[]
[null,"DÉPENSES DÉTAILLÉES"]
[]
[null,"Code GL","Date de facturation ","N° de facture","Demandeur","Vérifiez la quantité","Bénéficiaire","N° Chèque","Méthode de distribution","Date de fichier"]
[null,1000,"Date",100,"Bleu-vert",{"v":750.75,"d":"750.75 $"},"Message Intégré ","Service de publipostage","Envoi postal","Date"]
[null,7000,"Date",101,"Robert Walters",{"v":2500,"d":"2,500.00 $"},"A. Datum Corporation ","ordinateurs de bureau 2","Crédit","Date"]

{"sheet":"DONS ET PARRAINAGES","index":3,"n_rows":6,"n_cols":12,"rows_kept":6,"merged":[[1,1,1,11],[2,1,2,5],[2,6,2,11]]}
[]
[null,"DONS ET PARRAINAGES"]
[]
[null,"Code GL","Date de la demande du chèque","Demandeur","Vérifiez la quantité","Contribution de l'année précédente","Bénéficiaire","Utilisé pour","Approuvée par","Catégorie","Méthode de distribution","Date de fichier"]
[null,12000,"Date","Susan W. Eaton",{"v":1000,"d":"1,000.00 $"},{"v":12,"d":"12.00 $"},"École des Beaux-Arts ","Bourses","Kim Ralls","Arts","Contrôler","Date"]
[null,11000,"Date","Susan W. Eaton",{"v":2500,"d":"2,500.00 $"},{"v":0,"d":"0.00 $"},"Wingtip Toys ","Communauté","Kathie Flood","Communauté","Contrôler","Date"]